{"text_format":"1","workbook":"xlsx","n_sheets":11,"sheets":["Explications","Nature","Partenaires","Structure projet ","BdD","Amortissements","Description des couts ","Synthese","Aide prévisionnelle","CheckList","Synthèse par LOT"],"not_rendered":{"charts":7,"images":6,"macros":1,"external_links":1,"defined_names":14,"comments":4,"pivot_tables":27},"unopened":[],"bounds":{"document_bytes":16777216,"sheet_cells":100000,"rows_first":2000,"rows_last":500,"rows_between":2000,"halvings":0,"cell_chars":16384,"cell_head_chars":4096},"cells_cut":0,"cells_raw":0,"read":"whole","date_system":"1900"}

{"sheet":"Explications","index":0,"n_rows":36,"n_cols":494,"rows_kept":36,"cut":false,"hidden":false,"merged":[[23,493,23,499],[1,1,2,12],[14,493,14,499],[19,493,19,499],[20,493,20,499],[4,493,4,499],[6,493,6,499],[7,493,11,499],[3,493,3,499],[13,493,13,499],[4,3,4,10],[9,3,9,10],[5,3,5,6],[5,7,5,10],[6,3,6,6],[6,7,6,10],[35,3,37,10],[20,3,20,10],[10,3,10,10],[13,3,13,10],[14,3,15,10],[28,3,31,10],[21,3,22,10],[23,3,24,10],[27,3,27,10],[34,3,34,10],[18,3,18,10],[17,3,17,10]]}
[]
[null,"Base de données des coûts du projet\nAppel à Projets\nInvestissements d'Avenir ADEME",null,null,null,null,null,null,null,null,null,null,null,null,"Garder la protection",null,"Oui"]
[]
[null,null,null,null,null,null,null,"version 2.7 ADEME du 19 decembre 2019",null,null,null,null,null,null,null,null,null,null,null,null,null,null,null,null,null,null,null,null,null,null,null,null,null,null,null,null,null,null,null,null,null,null,null,null,null,null,null,null,null,null,null,null,null,null,null,null,null,null,null,null,null,null,null,null,null,null,null,null,null,null,null,null,null,null,null,null,null,null,null,null,null,null,null,null,null,null,null,null,null,null,null,null,null,null,null,null,null,null,null,null,null,null,null,null,null,null,null,null,null,null,null,null,null,null,null,null,null,null,null,null,null,null,null,null,null,null,null,null,null,null,null,null,null,null,null,null,null,null,null,null,null,null,null,null,null,null,null,null,null,null,null,null,null,null,null,null,null,null,null,null,null,null,null,null,null,null,null,null,null,null,null,null,null,null,null,null,null,null,null,null,null,null,null,null,null,null,null,null,null,null,null,null,null,null,null,null,null,null,null,null,null,null,null,null,null,null,null,null,null,null,null,null,null,null,null,null,null,null,null,null,null,null,null,null,null,null,null,null,null,null,null,null,null,null,null,null,null,null,null,null,null,null,null,null,null,null,null,null,null,null,null,null,null,null,null,null,null,null,null,null,null,null,null,null,null,null,null,null,null,null,null,null,null,null,null,null,null,null,null,null,null,null,null,null,null,null,null,null,null,null,null,null,null,null,null,null,null,null,null,null,null,null,null,null,null,null,null,null,null,null,null,null,null,null,null,null,null,null,null,null,null,null,null,null,null,null,null,null,null,null,null,null,null,null,null,null,null,null,null,null,null,null,null,null,null,null,null,null,null,null,null,null,null,null,null,null,null,null,null,null,null,null,null,null,null,null,null,null,null,null,null,null,null,null,null,null,null,null,null,null,null,null,null,null,null,null,null,null,null,null,null,null,null,null,null,null,null,null,null,null,null,null,null,null,null,null,null,null,null,null,null,null,null,null,null,null,null,null,null,null,null,null,null,null,null,null,null,null,null,null,null,null,null,null,null,null,null,null,null,null,null,null,null,null,null,null,null,null,null,null,null,null,null,null,null,null,null,null,null,null,null,null,null,null,null,null,null,null,null,null,null,null,null,null,null,null,null,null,null,null,null,null,null,null,null,null,null,null,null,null,null,null,null,"  Principes généraux"]
[null,null,null,"  Principes généraux",null,null,null,null,null,null,null,null,null,null,null,null,null,null,null,null,null,null,null,null,null,null,null,null,null,null,null,null,null,null,null,null,null,null,null,null,null,null,null,null,null,null,null,null,null,null,null,null,null,null,null,null,null,null,null,null,null,null,null,null,null,null,null,null,null,null,null,null,null,null,null,null,null,null,null,null,null,null,null,null,null,null,null,null,null,null,null,null,null,null,null,null,null,null,null,null,null,null,null,null,null,null,null,null,null,null,null,null,null,null,null,null,null,null,null,null,null,null,null,null,null,null,null,null,null,null,null,null,null,null,null,null,null,null,null,null,null,null,null,null,null,null,null,null,null,null,null,null,null,null,null,null,null,null,null,null,null,null,null,null,null,null,null,null,null,null,null,null,null,null,null,null,null,null,null,null,null,null,null,null,null,null,null,null,null,null,null,null,null,null,null,null,null,null,null,null,null,null,null,null,null,null,null,null,null,null,null,null,null,null,null,null,null,null,null,null,null,null,null,null,null,null,null,null,null,null,null,null,null,null,null,null,null,null,null,null,null,null,null,null,null,null,null,null,null,null,null,null,null,null,null,null,null,null,null,null,null,null,null,null,null,null,null,null,null,null,null,null,null,null,null,null,null,null,null,null,null,null,null,null,null,null,null,null,null,null,null,null,null,null,null,null,null,null,null,null,null,null,null,null,null,null,null,null,null,null,null,null,null,null,null,null,null,null,null,null,null,null,null,null,null,null,null,null,null,null,null,null,null,null,null,null,null,null,null,null,null,null,null,null,null,null,null,null,null,null,null,null,null,null,null,null,null,null,null,null,null,null,null,null,null,null,null,null,null,null,null,null,null,null,null,null,null,null,null,null,null,null,null,null,null,null,null,null,null,null,null,null,null,null,null,null,null,null,null,null,null,null,null,null,null,null,null,null,null,null,null,null,null,null,null,null,null,null,null,null,null,null,null,null,null,null,null,null,null,null,null,null,null,null,null,null,null,null,null,null,null,null,null,null,null,null,null,null,null,null,null,null,null,null,null,null,null,null,null,null,null,null,null,null,null,null,null,null,null,null,null,null,null,null,null,null,null,null,null,null,null,null,null,null,null,null,null,null,null,null,null,null,null,"Le document contient 3 types d'onglets :\n1/ Onglets blancs : aide au remplissage de la base de données\n2/ Onglets bleus : informations à compléter par les partenaires\n3/ Onglets gris : tableaux d'évaluation destinés à l'ADEME et automatiquement générés (aucune action des partenaires)"]
[null,null,null,"Le document contient 3 types d'onglets :",null,null,null,"Les onglets bleus contiennent 2 types de cellules  :"]
[null,null,null,"1/ Onglets blancs : aide au remplissage de la base de données,\n\n2/ Onglets bleus : informations à compléter par les partenaires,\n\n3/ Onglets gris : tableaux d'évaluation destinés à l'ADEME et automatiquement générés (aucune action des partenaires),",null,null,null,"1/ Cellules blanches, qui doivent être complétées par les partenaires des différentes informations demandées,\n\n2/ Celulles Grises, qui contiennent des formules de calcul découlant des informations rentrées dans les cellules blanches",null,null,null,null,null,null,null,null,null,null,null,null,null,null,null,null,null,null,null,null,null,null,null,null,null,null,null,null,null,null,null,null,null,null,null,null,null,null,null,null,null,null,null,null,null,null,null,null,null,null,null,null,null,null,null,null,null,null,null,null,null,null,null,null,null,null,null,null,null,null,null,null,null,null,null,null,null,null,null,null,null,null,null,null,null,null,null,null,null,null,null,null,null,null,null,null,null,null,null,null,null,null,null,null,null,null,null,null,null,null,null,null,null,null,null,null,null,null,null,null,null,null,null,null,null,null,null,null,null,null,null,null,null,null,null,null,null,null,null,null,null,null,null,null,null,null,null,null,null,null,null,null,null,null,null,null,null,null,null,null,null,null,null,null,null,null,null,null,null,null,null,null,null,null,null,null,null,null,null,null,null,null,null,null,null,null,null,null,null,null,null,null,null,null,null,null,null,null,null,null,null,null,null,null,null,null,null,null,null,null,null,null,null,null,null,null,null,null,null,null,null,null,null,null,null,null,null,null,null,null,null,null,null,null,null,null,null,null,null,null,null,null,null,null,null,null,null,null,null,null,null,null,null,null,null,null,null,null,null,null,null,null,null,null,null,null,null,null,null,null,null,null,null,null,null,null,null,null,null,null,null,null,null,null,null,null,null,null,null,null,null,null,null,null,null,null,null,null,null,null,null,null,null,null,null,null,null,null,null,null,null,null,null,null,null,null,null,null,null,null,null,null,null,null,null,null,null,null,null,null,null,null,null,null,null,null,null,null,null,null,null,null,null,null,null,null,null,null,null,null,null,null,null,null,null,null,null,null,null,null,null,null,null,null,null,null,null,null,null,null,null,null,null,null,null,null,null,null,null,null,null,null,null,null,null,null,null,null,null,null,null,null,null,null,null,null,null,null,null,null,null,null,null,null,null,null,null,null,null,null,null,null,null,null,null,null,null,null,null,null,null,null,null,null,null,null,null,null,null,null,null,null,null,null,null,null,null,null,null,null,null,null,null,null,null,null,null,null,null,null,null,null,null,null,null,null,null,null,null,null,null,null,null,null,null,null,null,null,null,null,null,null,null,null,null,null,null,null,null,null,null,null,null,null,null,"  Catégorie d'aide"]
[null,null,null,null,null,null,null,null,null,null,null,null,null,null,null,null,null,null,null,null,null,null,null,null,null,null,null,null,null,null,null,null,null,null,null,null,null,null,null,null,null,null,null,null,null,null,null,null,null,null,null,null,null,null,null,null,null,null,null,null,null,null,null,null,null,null,null,null,null,null,null,null,null,null,null,null,null,null,null,null,null,null,null,null,null,null,null,null,null,null,null,null,null,null,null,null,null,null,null,null,null,null,null,null,null,null,null,null,null,null,null,null,null,null,null,null,null,null,null,null,null,null,null,null,null,null,null,null,null,null,null,null,null,null,null,null,null,null,null,null,null,null,null,null,null,null,null,null,null,null,null,null,null,null,null,null,null,null,null,null,null,null,null,null,null,null,null,null,null,null,null,null,null,null,null,null,null,null,null,null,null,null,null,null,null,null,null,null,null,null,null,null,null,null,null,null,null,null,null,null,null,null,null,null,null,null,null,null,null,null,null,null,null,null,null,null,null,null,null,null,null,null,null,null,null,null,null,null,null,null,null,null,null,null,null,null,null,null,null,null,null,null,null,null,null,null,null,null,null,null,null,null,null,null,null,null,null,null,null,null,null,null,null,null,null,null,null,null,null,null,null,null,null,null,null,null,null,null,null,null,null,null,null,null,null,null,null,null,null,null,null,null,null,null,null,null,null,null,null,null,null,null,null,null,null,null,null,null,null,null,null,null,null,null,null,null,null,null,null,null,null,null,null,null,null,null,null,null,null,null,null,null,null,null,null,null,null,null,null,null,null,null,null,null,null,null,null,null,null,null,null,null,null,null,null,null,null,null,null,null,null,null,null,null,null,null,null,null,null,null,null,null,null,null,null,null,null,null,null,null,null,null,null,null,null,null,null,null,null,null,null,null,null,null,null,null,null,null,null,null,null,null,null,null,null,null,null,null,null,null,null,null,null,null,null,null,null,null,null,null,null,null,null,null,null,null,null,null,null,null,null,null,null,null,null,null,null,null,null,null,null,null,null,null,null,null,null,null,null,null,null,null,null,null,null,null,null,null,null,null,null,null,null,null,null,null,null,null,null,null,null,null,null,null,null,null,null,null,null,null,null,null,null,null,null,null,null,null,null,null,null,null,null,"1/ RI (Recherche industrielle) et DE (Développement expérimental)\n\n\n\n3/ PE (Protection de l'Environnement)\n\n"]
[]
[null,null,null," Onglet \"Nature\" : Définitions des catégories d'aide et natures de coûts"]
[null,null,null,"1/ Lire et se familiariser avec les régimes d'aides possibles,\n\n2/ Commencer à réfléchir au choix du ou des régimes d'aide qui vont être mobilisés,\n\n3/ Se familiariser avec les différentes natures de coûts possibles."]
[]
[]
[null,null,null,"  Onglet \"Partenaires\" : Entrer la liste des partenaires",null,null,null,null,null,null,null,null,null,null,null,null,null,null,null,null,null,null,null,null,null,null,null,null,null,null,null,null,null,null,null,null,null,null,null,null,null,null,null,null,null,null,null,null,null,null,null,null,null,null,null,null,null,null,null,null,null,null,null,null,null,null,null,null,null,null,null,null,null,null,null,null,null,null,null,null,null,null,null,null,null,null,null,null,null,null,null,null,null,null,null,null,null,null,null,null,null,null,null,null,null,null,null,null,null,null,null,null,null,null,null,null,null,null,null,null,null,null,null,null,null,null,null,null,null,null,null,null,null,null,null,null,null,null,null,null,null,null,null,null,null,null,null,null,null,null,null,null,null,null,null,null,null,null,null,null,null,null,null,null,null,null,null,null,null,null,null,null,null,null,null,null,null,null,null,null,null,null,null,null,null,null,null,null,null,null,null,null,null,null,null,null,null,null,null,null,null,null,null,null,null,null,null,null,null,null,null,null,null,null,null,null,null,null,null,null,null,null,null,null,null,null,null,null,null,null,null,null,null,null,null,null,null,null,null,null,null,null,null,null,null,null,null,null,null,null,null,null,null,null,null,null,null,null,null,null,null,null,null,null,null,null,null,null,null,null,null,null,null,null,null,null,null,null,null,null,null,null,null,null,null,null,null,null,null,null,null,null,null,null,null,null,null,null,null,null,null,null,null,null,null,null,null,null,null,null,null,null,null,null,null,null,null,null,null,null,null,null,null,null,null,null,null,null,null,null,null,null,null,null,null,null,null,null,null,null,null,null,null,null,null,null,null,null,null,null,null,null,null,null,null,null,null,null,null,null,null,null,null,null,null,null,null,null,null,null,null,null,null,null,null,null,null,null,null,null,null,null,null,null,null,null,null,null,null,null,null,null,null,null,null,null,null,null,null,null,null,null,null,null,null,null,null,null,null,null,null,null,null,null,null,null,null,null,null,null,null,null,null,null,null,null,null,null,null,null,null,null,null,null,null,null,null,null,null,null,null,null,null,null,null,null,null,null,null,null,null,null,null,null,null,null,null,null,null,null,null,null,null,null,null,null,null,null,null,null,null,null,null,null,null,null,null,null,null,null,null,null,null,null,null,null,null,null,null,null,null,null,null,"  Entrer la liste des partenaires (onglet Partenaires)"]
[null,null,null,"A noter : Les coûts des partenaires signataires de l'accord de consortium et qui ne demandent pas d'aide à l'ADEME doivent apparaitre.\n\n1/ Renseigner la catégorie \"Projet coopératif\" si le projet est coopératif (définition fournie dans le texte de l'appel à projet), l'appel à projet auquel le projet est déposé et son nom.\n\n2/ Renseigner le nom de chaque partenaire du projet, leur catégorie d'entreprise au sens de la commission européenne. La définition de la catégorie d'entreprise figure dans le texte de l'appel et dans le manuel ci-dessous : \nhttp://ec.europa.eu/DocsRoom/documents/15582/attachments/1/translations/fr/renditions/native\n\n3/ Choisir si l'aide demandée contiendra de l'avance remboursable ainsi que la part d'avance remboursable. Les taux maximums d'aide prévus dans l'appel à projets sont automatiquement proposés.",null,null,null,null,null,null,null,null,null,null,null,null,null,null,null,null,null,null,null,null,null,null,null,null,null,null,null,null,null,null,null,null,null,null,null,null,null,null,null,null,null,null,null,null,null,null,null,null,null,null,null,null,null,null,null,null,null,null,null,null,null,null,null,null,null,null,null,null,null,null,null,null,null,null,null,null,null,null,null,null,null,null,null,null,null,null,null,null,null,null,null,null,null,null,null,null,null,null,null,null,null,null,null,null,null,null,null,null,null,null,null,null,null,null,null,null,null,null,null,null,null,null,null,null,null,null,null,null,null,null,null,null,null,null,null,null,null,null,null,null,null,null,null,null,null,null,null,null,null,null,null,null,null,null,null,null,null,null,null,null,null,null,null,null,null,null,null,null,null,null,null,null,null,null,null,null,null,null,null,null,null,null,null,null,null,null,null,null,null,null,null,null,null,null,null,null,null,null,null,null,null,null,null,null,null,null,null,null,null,null,null,null,null,null,null,null,null,null,null,null,null,null,null,null,null,null,null,null,null,null,null,null,null,null,null,null,null,null,null,null,null,null,null,null,null,null,null,null,null,null,null,null,null,null,null,null,null,null,null,null,null,null,null,null,null,null,null,null,null,null,null,null,null,null,null,null,null,null,null,null,null,null,null,null,null,null,null,null,null,null,null,null,null,null,null,null,null,null,null,null,null,null,null,null,null,null,null,null,null,null,null,null,null,null,null,null,null,null,null,null,null,null,null,null,null,null,null,null,null,null,null,null,null,null,null,null,null,null,null,null,null,null,null,null,null,null,null,null,null,null,null,null,null,null,null,null,null,null,null,null,null,null,null,null,null,null,null,null,null,null,null,null,null,null,null,null,null,null,null,null,null,null,null,null,null,null,null,null,null,null,null,null,null,null,null,null,null,null,null,null,null,null,null,null,null,null,null,null,null,null,null,null,null,null,null,null,null,null,null,null,null,null,null,null,null,null,null,null,null,null,null,null,null,null,null,null,null,null,null,null,null,null,null,null,null,null,null,null,null,null,null,null,null,null,null,null,null,null,null,null,null,null,null,null,null,null,null,null,null,null,null,null,null,null,null,null,null,null,null,null,null,null,null,null,null,null,null,null,null,"1/ Saisir le nom des partenaires du projet et leur catégorie d'entreprise au sens communautaire (cellules blanches).\n2/ Cocher la cellule \"Projet coopératif\" si le projet est coopératif.\nLes taux maximum d'aide prévus dans l'appel à projets sont automatiquement proposés.\n\nNote 1 : Les coûts des partenaires signataires de l'accord de consortium et qui ne demandent pas d'aide à l'ADEME doivent apparaitre.\nNote 2 : les définitions des \"catégories d'entreprise\" et d'un \"projet coopératif\" sont fournies dans le texte de l'appel à projets."]
[]
[]
[null,null,null,"Onglet \"Structure projet\""]
[null,null,null,"Remplir par lot, tâche, sous-tâche les intitulés des activités du projets\n\nPar la suite seul les lot, tâche et sous-tâche seront à rempli. Les intitulés seront complétés automatiquement dans les onglets \"BDD\", \"Amortissements\" et \"Descritpion des coûts\" "]
[null,null,null,null,null,null,null,null,null,null,null,null,null,null,null,null,null,null,null,null,null,null,null,null,null,null,null,null,null,null,null,null,null,null,null,null,null,null,null,null,null,null,null,null,null,null,null,null,null,null,null,null,null,null,null,null,null,null,null,null,null,null,null,null,null,null,null,null,null,null,null,null,null,null,null,null,null,null,null,null,null,null,null,null,null,null,null,null,null,null,null,null,null,null,null,null,null,null,null,null,null,null,null,null,null,null,null,null,null,null,null,null,null,null,null,null,null,null,null,null,null,null,null,null,null,null,null,null,null,null,null,null,null,null,null,null,null,null,null,null,null,null,null,null,null,null,null,null,null,null,null,null,null,null,null,null,null,null,null,null,null,null,null,null,null,null,null,null,null,null,null,null,null,null,null,null,null,null,null,null,null,null,null,null,null,null,null,null,null,null,null,null,null,null,null,null,null,null,null,null,null,null,null,null,null,null,null,null,null,null,null,null,null,null,null,null,null,null,null,null,null,null,null,null,null,null,null,null,null,null,null,null,null,null,null,null,null,null,null,null,null,null,null,null,null,null,null,null,null,null,null,null,null,null,null,null,null,null,null,null,null,null,null,null,null,null,null,null,null,null,null,null,null,null,null,null,null,null,null,null,null,null,null,null,null,null,null,null,null,null,null,null,null,null,null,null,null,null,null,null,null,null,null,null,null,null,null,null,null,null,null,null,null,null,null,null,null,null,null,null,null,null,null,null,null,null,null,null,null,null,null,null,null,null,null,null,null,null,null,null,null,null,null,null,null,null,null,null,null,null,null,null,null,null,null,null,null,null,null,null,null,null,null,null,null,null,null,null,null,null,null,null,null,null,null,null,null,null,null,null,null,null,null,null,null,null,null,null,null,null,null,null,null,null,null,null,null,null,null,null,null,null,null,null,null,null,null,null,null,null,null,null,null,null,null,null,null,null,null,null,null,null,null,null,null,null,null,null,null,null,null,null,null,null,null,null,null,null,null,null,null,null,null,null,null,null,null,null,null,null,null,null,null,null,null,null,null,null,null,null,null,null,null,null,null,null,null,null,null,null,null,null,null,null,null,null,null,null,null,null,null,null,null,null,null,null,null,null,null,null,null,null,null,"L'unité de temps élémentaire pour décrire le découpage de l'ensemble du projet a été fixée au Semestre.\nPour chaque partenaire, détailler le plan de travail en une liste de tâches élémentaires et les découper selon cette unité de temps. Définir les livrables selon les indications du dossier de candidature.\n\nRemplir une ligne par tâche ou livrable, par partenaire et par semestre en précisant :\n- le rattachement à la structure du programme (colonnes A à H)\n- le détail du coût (colonnes I à AE)\n- une zone libre à l'usage des proposants (AC)\n\nUne proposition de classification RI/DE/NE/NR peut être faite par les partenaires (colonne AE) mais la classification finale est faite par l'ADEME au cours de l'instruction du projet.\n(RI : Recherche industrielle / DE : Développement expérimental / NE : Non éligible / NR : Non retenu)\n\n"]
[null,null,null,"  Onglet \"BdD\" : Compléter la base de données ",null,null,null,null,null,null,null,null,null,null,null,null,null,null,null,null,null,null,null,null,null,null,null,null,null,null,null,null,null,null,null,null,null,null,null,null,null,null,null,null,null,null,null,null,null,null,null,null,null,null,null,null,null,null,null,null,null,null,null,null,null,null,null,null,null,null,null,null,null,null,null,null,null,null,null,null,null,null,null,null,null,null,null,null,null,null,null,null,null,null,null,null,null,null,null,null,null,null,null,null,null,null,null,null,null,null,null,null,null,null,null,null,null,null,null,null,null,null,null,null,null,null,null,null,null,null,null,null,null,null,null,null,null,null,null,null,null,null,null,null,null,null,null,null,null,null,null,null,null,null,null,null,null,null,null,null,null,null,null,null,null,null,null,null,null,null,null,null,null,null,null,null,null,null,null,null,null,null,null,null,null,null,null,null,null,null,null,null,null,null,null,null,null,null,null,null,null,null,null,null,null,null,null,null,null,null,null,null,null,null,null,null,null,null,null,null,null,null,null,null,null,null,null,null,null,null,null,null,null,null,null,null,null,null,null,null,null,null,null,null,null,null,null,null,null,null,null,null,null,null,null,null,null,null,null,null,null,null,null,null,null,null,null,null,null,null,null,null,null,null,null,null,null,null,null,null,null,null,null,null,null,null,null,null,null,null,null,null,null,null,null,null,null,null,null,null,null,null,null,null,null,null,null,null,null,null,null,null,null,null,null,null,null,null,null,null,null,null,null,null,null,null,null,null,null,null,null,null,null,null,null,null,null,null,null,null,null,null,null,null,null,null,null,null,null,null,null,null,null,null,null,null,null,null,null,null,null,null,null,null,null,null,null,null,null,null,null,null,null,null,null,null,null,null,null,null,null,null,null,null,null,null,null,null,null,null,null,null,null,null,null,null,null,null,null,null,null,null,null,null,null,null,null,null,null,null,null,null,null,null,null,null,null,null,null,null,null,null,null,null,null,null,null,null,null,null,null,null,null,null,null,null,null,null,null,null,null,null,null,null,null,null,null,null,null,null,null,null,null,null,null,null,null,null,null,null,null,null,null,null,null,null,null,null,null,null,null,null,null,null,null,null,null,null,null,null,null,null,null,null,null,null,null,null,null,null,null,null,null,"\n"]
[null,null,null,"A L'ATTENTION DES PORTEURS :\n\n- L'unité de temps pour décrire le découpage de l'ensemble du projet sur chaque ligne a été fixée ausemestre.Si une tache se déroule sur 2 ans, soit 4 semestres, décomposer les coûts en 4 semestres soit 4 lignes pour la même tâche.\n\n- Ne renseigner qu'une valeur par nom de lôt, de tâche, de sous-tâche livrable, de partenaire et de semestre par cellule.\n\n\n"]
[null,null,null,null,null,null,null,null,null,null,null,null,null,null,null,null,null,null,null,null,null,null,null,null,null,null,null,null,null,null,null,null,null,null,null,null,null,null,null,null,null,null,null,null,null,null,null,null,null,null,null,null,null,null,null,null,null,null,null,null,null,null,null,null,null,null,null,null,null,null,null,null,null,null,null,null,null,null,null,null,null,null,null,null,null,null,null,null,null,null,null,null,null,null,null,null,null,null,null,null,null,null,null,null,null,null,null,null,null,null,null,null,null,null,null,null,null,null,null,null,null,null,null,null,null,null,null,null,null,null,null,null,null,null,null,null,null,null,null,null,null,null,null,null,null,null,null,null,null,null,null,null,null,null,null,null,null,null,null,null,null,null,null,null,null,null,null,null,null,null,null,null,null,null,null,null,null,null,null,null,null,null,null,null,null,null,null,null,null,null,null,null,null,null,null,null,null,null,null,null,null,null,null,null,null,null,null,null,null,null,null,null,null,null,null,null,null,null,null,null,null,null,null,null,null,null,null,null,null,null,null,null,null,null,null,null,null,null,null,null,null,null,null,null,null,null,null,null,null,null,null,null,null,null,null,null,null,null,null,null,null,null,null,null,null,null,null,null,null,null,null,null,null,null,null,null,null,null,null,null,null,null,null,null,null,null,null,null,null,null,null,null,null,null,null,null,null,null,null,null,null,null,null,null,null,null,null,null,null,null,null,null,null,null,null,null,null,null,null,null,null,null,null,null,null,null,null,null,null,null,null,null,null,null,null,null,null,null,null,null,null,null,null,null,null,null,null,null,null,null,null,null,null,null,null,null,null,null,null,null,null,null,null,null,null,null,null,null,null,null,null,null,null,null,null,null,null,null,null,null,null,null,null,null,null,null,null,null,null,null,null,null,null,null,null,null,null,null,null,null,null,null,null,null,null,null,null,null,null,null,null,null,null,null,null,null,null,null,null,null,null,null,null,null,null,null,null,null,null,null,null,null,null,null,null,null,null,null,null,null,null,null,null,null,null,null,null,null,null,null,null,null,null,null,null,null,null,null,null,null,null,null,null,null,null,null,null,null,null,null,null,null,null,null,null,null,null,null,null,null,null,null,null,null,null,null,null,null,null,null,null,null,null,"Editer des tableaux (onglet Synthèse)"]
[null,null,null,"1/ Remplir chaque ligne en précisant :\n\n- les informations liées à la structure du planning du projet dans les colonnes A à H,\n\n- le détail des coûts, dans les colonnes I à AE.\n\nLes coûts sont à exprimer hors TVA sauf pour les dépenses de sous-traitance en cas de non assujettissement à la TVA  ou d'assujettissement partiel du bénéficiaire et pour les frais de missions qui doivent toujours être exprimés en TTC.\n\nPour les établissements de recherche les coûts complets sont à présenter, notamment les coûts de personnels permanents en complément des coûts marginaux. Il est donc demandé d'indiquer les coûts des personnels permanents dans la colonne T (montant global).\n\n2/ En cas de besoin, une zone libre a été laissée à l'usage des proposants pour transmettre à l'ADEME des commentaires pertinents pour l'instruction.\n\n3/ Renseigner une proposition de classification (RI : Recherche industrielle / DE : Développement expérimental / PE : Protection de l'environnement / NE : Non éligible / NR : Non retenu) colonne AE. La classification est suceptible d'être modifiée par l'ADEME au cours de l'instruction du projet.",null,null,null,null,null,null,null,null,null,null,null,null,null,null,null,null,null,null,null,null,null,null,null,null,null,null,null,null,null,null,null,null,null,null,null,null,null,null,null,null,null,null,null,null,null,null,null,null,null,null,null,null,null,null,null,null,null,null,null,null,null,null,null,null,null,null,null,null,null,null,null,null,null,null,null,null,null,null,null,null,null,null,null,null,null,null,null,null,null,null,null,null,null,null,null,null,null,null,null,null,null,null,null,null,null,null,null,null,null,null,null,null,null,null,null,null,null,null,null,null,null,null,null,null,null,null,null,null,null,null,null,null,null,null,null,null,null,null,null,null,null,null,null,null,null,null,null,null,null,null,null,null,null,null,null,null,null,null,null,null,null,null,null,null,null,null,null,null,null,null,null,null,null,null,null,null,null,null,null,null,null,null,null,null,null,null,null,null,null,null,null,null,null,null,null,null,null,null,null,null,null,null,null,null,null,null,null,null,null,null,null,null,null,null,null,null,null,null,null,null,null,null,null,null,null,null,null,null,null,null,null,null,null,null,null,null,null,null,null,null,null,null,null,null,null,null,null,null,null,null,null,null,null,null,null,null,null,null,null,null,null,null,null,null,null,null,null,null,null,null,null,null,null,null,null,null,null,null,null,null,null,null,null,null,null,null,null,null,null,null,null,null,null,null,null,null,null,null,null,null,null,null,null,null,null,null,null,null,null,null,null,null,null,null,null,null,null,null,null,null,null,null,null,null,null,null,null,null,null,null,null,null,null,null,null,null,null,null,null,null,null,null,null,null,null,null,null,null,null,null,null,null,null,null,null,null,null,null,null,null,null,null,null,null,null,null,null,null,null,null,null,null,null,null,null,null,null,null,null,null,null,null,null,null,null,null,null,null,null,null,null,null,null,null,null,null,null,null,null,null,null,null,null,null,null,null,null,null,null,null,null,null,null,null,null,null,null,null,null,null,null,null,null,null,null,null,null,null,null,null,null,null,null,null,null,null,null,null,null,null,null,null,null,null,null,null,null,null,null,null,null,null,null,null,null,null,null,null,null,null,null,null,null,null,null,null,null,null,null,null,null,null,null,null,null,null,null,null,null,null,null,null,null,null,null,null,null,null,null,"Le tableau de l'onglet \"Synthèse\" est à insérer dans le dossier de candidature."]
[]
[]
[]
[null,null,null,"  Onglet \"Amortissements\" : Tableau d'amortissement des capex et des équipements de R&D"]
[null,null,null,"Renseigner par lot, par tâche, par sous-tâche et par partenaire  :\n\n- la désignation et la description des differents biens acquis pour le projet,\n\n- la valeur d'acquisition, le semestre projet d'acquisition et la durée d'amortissement comptable (en semestre),\n\n- l'estimation de la part d'utilisation du bien affectée au projet (%) et la durée d'utilisation dans le cadre du projet en semestre\n\nCes données sont à reprendre ensuite dans la colonne Z de l'onglet BdD\n"]
[]
[]
[]
[]
[]
[null,null,null,"  Onglet \"Descriptions des coûts\" : Tableau de description des coûts"]
[null,null,null,"Renseigner par lot, par tâche, par sous-tache et par partenaire  :\n\n- La nature des coûts, les fournisseurs pressentis, la localisation, les biens achetés et leur montant,\n- Tout autre commentaire necessaire à l'instruction et à la bonne compréhension des coûts par l'ADEME\n\nCes données sont à reprendre ensuite dans les colonnes respectives Y (ss-traitance), AA (Frais de mission), AB (Autres coûts) de l'onglet BdD"]

{"sheet":"Nature","index":1,"n_rows":10,"n_cols":8,"rows_kept":10,"cut":false,"hidden":false,"merged":[[6,1,6,7],[1,1,1,7],[3,3,3,4],[4,3,4,4],[3,5,3,7],[4,5,4,7],[4,1,4,2],[3,1,3,2]]}
[]
[null,"Définition des catégories d'aide "]
[null,"Les coûts admissibles de recherche et de développement sont affectés à une catégorie spécifique (recherche industrielle, développement expérimental, protection de l'environnement)"]
[null,"RI (Recherche Industrielle)",null,"DE (Développement Expérimental)",null,"PE (Protection de l'Environnement)"]
[null,"Les aides sont octroyées directement à l’organisme de recherche et de diffusion des connaissances et ne comportent pas l’octroi direct d’une aide sans rapport avec la recherche visées.\n\nLes aides releve intégralement de la catégorie suivante :\n\n- \"Recherche industrielle\", définie comme la recherche planifiée ou des enquêtes critiques visant à acquérir de nouvelles connaissances et aptitudes en vue de mettre au point de nouveaux produits, procédés ou services, ou d'entraîner une amélioration notable de produits, procédés ou services existants. Elle comprend la création de composants de systèmes complexes et peut inclure la construction de prototypes dans un environnement de laboratoire ou dans un environnement à interfaces simulées vers les systèmes existants, ainsi que des lignes pilotes, lorsque c'est nécessaire pour la recherche industrielle, et notamment pour la validation de technologies génériques;",null,"Les aides releve intégralement des catégories suivantes :\n\n\"Développement expérimental\", définie comme l'acquisition, l'association, la mise en forme et l'utilisation de connaissances et d'aptitudes scientifiques, technologiques, commerciales et autres pertinentes en vue de développer des produits, des procédés ou des services nouveaux ou améliorés. \nIl peut aussi s'agir, par exemple, d'activités visant la définition théorique et la planification de produits, de procédés ou de services nouveaux, ainsi que la consignation des informations qui s'y rapportent.\nLe développement expérimental peut comprendre la création de prototypes, la démonstration, l'élaboration de projets pilotes, les essais et la validation de produits, de procédés ou de services nouveaux ou améliorés dans des environnements représentatifs des conditions de la vie réelle, lorsque l'objectif premier est d'apporter des améliorations supplémentaires, au niveau technique, aux produits, procédés ou services qui ne sont pas en grande partie «fixés». Il peut comprendre la création de prototypes et de projets pilotes commercialement exploitables qui sont nécessairement les produits commerciaux finals et qui sont trop onéreux à produire pour être utilisés uniquement à des fins de démonstration et de validation. \nLe développement expérimental ne comprend pas les modifications de routine ou périodiques apportées à des produits, lignes de production, procédés de fabrication et services existants et à d'autres opérations en cours, même si ces modifications peuvent représenter des améliorations;\n",null,"Les coût éligibles sont définis comme les coûts d'investissements supplémentaires nécessaires pour :\n\n- atteindre un niveau de protection de l'environnement supérieur au niveau requis par les normes communautaires concernées\n- ou augmenter le niveau de protection de l’environnement découlant de l'activité en l’absence de normes de l’Union,\nabstraction faite des bénéfices et des coûts d'exploitation. \n\nLes aides ne sont pas autorisées lorsque les investissements sont réalisés afin de garantir que les entreprises se conforment à des normes de l'Union déjà adoptées mais non encore entrées en vigueur , excepté lorsque l’aide est octroyée aux fins suivantes :\na) l'acquisition de nouveaux véhicules de transport routier, ferroviaire, fluvial et maritime conformes aux normes de l'Union adoptées, sous réserve que celles-ci ne soient pas entrées en vigueur avant la date d'acquisition des véhicules et qu'une fois obligatoires, elles ne s'appliquent pas à des véhicules déjà acquis ;\nb) le post-équipement de véhicules existants destinés au transport routier, ferroviaire, fluvial et maritime, sous réserve que les normes de l'Union ne soient pas entrées en vigueur avant la date de mise en service de ces véhicules et qu'une fois devenues obligatoires, elles ne s'appliquent pas à ces derniers de façon rétroactive\n\nIls sont déterminés comme suit:\na) si les coûts de l'investissement dans la protection de l'environnement peuvent être identifiés comme investissement distinct dans les coûts d'investissement totaux, ces coûts liés à la protection de l'environnement constituent les coûts admissibles ;\nb) dans tous les autres cas, les coûts de l'investissement dans la protection de l'environnement sont déterminés par référence à un investissement similaire, moins respectueux de l'environnement, qui aurait été plausible en l'absence d'aide. La différence entre les coûts des deux investissements représente les coûts liés à la protection de l'environnement et constitue les coûts admissibles."]
[]
[null,"Définition des différents types de nature des coûts"]
[]
[null,"Salaires et charges","Frais connexes","Coûts de sous-traitance","Contribution aux amortissements","Coûts de refacturation interne","Frais de mission","Autres coûts"]
[null,"Dépenses de personnel (chercheurs, techniciens et autres personnels d'appui), employés exclusivement pour le projet, comprenant les salaires, les charges sociales afférentes et les indémnités de stage\n\nA exprimer exclusivement en salaire et charges (sans autres frais liés à ces salaires, chargés non environnés)\n\nLa rémunération principale des personnels de la fonction publique de l'Etat, des collectivités, territoriales et les charges sociales associées ne sont pas éligibles.\nCes dépenses sont à séparer et à inscrire dans le colonne \"dont salaires personnels permanents (statutaires organismes publics)\"","Les frais connexes sont les dépenses qui concourent à la réalisation du projet sans toutefois pouvoir être directement attribués à celui-ci.\n\nLe montant forfaitaire de ces dépenses est calculé de la façon suivante :\n• pour les EPA et EPST, à 4% des dépenses d'équipement (amortissements) + 8% des autres dépenses éligibles et retenues (soit hors équipement) ;\n• pour les autres organismes (sociétés commerciales, EPICs, GIE, centres techniques, associations etc...), à 20% des salaires de personnel éligibles et retenus chargés non environnés. \n","La sous-traitance s’effectue entre entreprises différentes (= SIREN différents), y compris membres d’un même groupe.\n\nSont éligibles les coûts de la recherche contractuelle, des connaissances techniques et des brevets et les coûts des prestations de services utilisés exclusivement pour l'activité du projet.\n\n","Coûts des instruments et du matériel utilisés pour le projet.\n\nSeuls les coûts d'amortissements correspondant à la durée du projet, calculés conformément aux pratiques comptables, sont admissibles.\n","La refacturation interne s’effectue au sein d’une même entreprise (= même SIREN).\n\nLa refacturation interne peut être éligible sous réserve :\n\n- d'être calculée sur une base précise d'unités identifiées (heure/lots/etc.),\n- d'être justifiée de façon précise quant à sa quotité affectée au projet,\n- de pouvoir faire l'objet d'une certification par un commissaire aux comptes ou expert-comptable.","Frais des déplacements liés à la réalisation du projet.\n\nFrais réels dont les justificatifs seront à fournir. Ils doivent être prévus et exprimés en TTC.","Autres frais d'exploitation résultant directement de l'activité du projet.\n\nCe sont les coûts des instruments et du matériel utilisés pour les besoins du projet. \n\nSi les instruments et le matériel ne sont pas utilisés pendant toute leur durée de vie pour le projet, alors seuls les coûts d'amortissement correspondant à la durée du projet, calculés conformément aux pratiques comptables, sont jugés admissibles"]

{"sheet":"Partenaires","index":2,"n_rows":36,"n_cols":12,"rows_kept":36,"cut":false,"hidden":false,"merged":[[16,0,16,6],[2,1,2,2],[4,7,14,15],[0,0,0,4]]}
["Définition des taux d'aide"]
[]
["AAP",null,null,null,"Nom Projet",null,null,"Durée (mois)",24,null,"Projet coopératif","Oui"]
[]
["Nom court du partenaire",null,null,null,null,null,null,"La catégorie d'entreprise et assimilé :\n\nGE : Grande Entreprise; \nETI : Entreprise de Taille Intermédiaire\nPE : Petite et Moyenne Entreprise\n* Définition : https://www.legifrance.gouv.fr/affichTexte.do?cidTexte=JORFTEXT000019961059\n\nLes établissements de recherche (ER) regroupent notamment les EPST, les EPA et les EPIC.\nDeux catégories d'aides sont proposées (si ce choix a été fait une première fois, ce financement s'appliquera durant toute la suite du Programme d'investissements d'avenir) :\n\n- ER aidés à 50% sur les coûts complets\n  Dans ce cas, dans l'onglet BDD veuillez renseigner les colonnes \"Salaire cat\" (O,P,Q,R,S), salaires chargés non environnés affectés au projet de tous les personnels (permanants et non permanants) \n\n- ER aidés à 100% sur les coûts marginaux.\n  Dans ce cas, dans l'onglet BDD, veuillez renseigner  les colonnes \"Salaire cat\" (O,P,Q,R,S), salaires chargés non environnés affectés au projet ainsi que la colonne U \"dont salaires personnels permanents (statutaires organismes publics)\" (salaires chargés non environnés également)\n\nOn entend par « coût marginal » les dépenses réelles additionnelles et  les charges d’amortissement des équipements  spécifiques à la mise en oeuvre du projet. Les frais généraux ou indirects ne sont pas inclus dans ces dépenses réelles et sont calculés forfaitairement. \n\nCependant, si l'activité issue du projet revêt un caractère concurentiel menant à la création de valeur, un établissement de recherche (EPIC, EPA, EPST) pourra être classé en \"acteur soumis au secteur concurrentiel\" (GE, ETI, PME)."]
["Catégorie d'entreprise ou assimilé"]
["Nombre de personnes dans l'entreprise"]
["Forme de l'aide ","Subvention et avances remboursables","Subvention et avances remboursables","Subvention et avances remboursables","Subvention et avances remboursables","Subvention et avances remboursables"]
["Part d'avance remboursable",{"$f":"IF(B6=\"ER 100%*coûts marginaux\",0%,IF(B6=\"ER 50%*coûts complets\",0%,IF(\nSUMIF(BdD!$F$6:$F$20,Partenaires!B5,BdD!$AH$6:$AH$20)>(SUMIF(BdD!$F$6:$F$20,Partenaires!B5,BdD!$AI$6:$AI$20)+SUMIF(BdD!$F$6:$F$20,Partenaires!B5,BdD!$AJ$6:$AJ$20)),25%,40%)))","v":0.4},{"$f":"IF(C6=\"ER 100%*coûts marginaux\",0%,IF(C6=\"ER 50%*coûts complets\",0%,IF(\nSUMIF(BdD!$F$6:$F$20,Partenaires!C5,BdD!$AH$6:$AH$20)>(SUMIF(BdD!$F$6:$F$20,Partenaires!C5,BdD!$AI$6:$AI$20)+SUMIF(BdD!$F$6:$F$20,Partenaires!C5,BdD!$AJ$6:$AJ$20)),25%,40%)))","v":0.4},{"$f":"IF(D6=\"ER 100%*coûts marginaux\",0%,IF(D6=\"ER 50%*coûts complets\",0%,IF(\nSUMIF(BdD!$F$6:$F$20,Partenaires!D5,BdD!$AH$6:$AH$20)>(SUMIF(BdD!$F$6:$F$20,Partenaires!D5,BdD!$AI$6:$AI$20)+SUMIF(BdD!$F$6:$F$20,Partenaires!D5,BdD!$AJ$6:$AJ$20)),25%,40%)))","v":0.4},{"$f":"IF(E6=\"ER 100%*coûts marginaux\",0%,IF(E6=\"ER 50%*coûts complets\",0%,IF(\nSUMIF(BdD!$F$6:$F$20,Partenaires!E5,BdD!$AH$6:$AH$20)>(SUMIF(BdD!$F$6:$F$20,Partenaires!E5,BdD!$AI$6:$AI$20)+SUMIF(BdD!$F$6:$F$20,Partenaires!E5,BdD!$AJ$6:$AJ$20)),25%,40%)))","v":0.4},{"$f":"IF(F6=\"ER 100%*coûts marginaux\",0%,IF(F6=\"ER 50%*coûts complets\",0%,IF(\nSUMIF(BdD!$F$6:$F$20,Partenaires!F5,BdD!$AH$6:$AH$20)>(SUMIF(BdD!$F$6:$F$20,Partenaires!F5,BdD!$AI$6:$AI$20)+SUMIF(BdD!$F$6:$F$20,Partenaires!F5,BdD!$AJ$6:$AJ$20)),25%,40%)))","v":0.4}]
["Taux d'aide RI",{"$f":"IF(B$6=\"ER 100%*coûts marginaux\",100%,IF(B$6=\"ER 50%*coûts complets\",50%,IF(SUMIFS($E$19:$E$36,$A$19:$A$36,$L$3,$B$19:$B$36,B$6,$C$19:$C$36,B$8)=0,\"Erreur de paramétrage\",SUMIFS($E$19:$E$36,$A$19:$A$36,$L$3,$B$19:$B$36,B$6,$C$19:$C$36,B$8))))","v":"Erreur de paramétrage"},{"$f":"IF(C$6=\"ER 100%*coûts marginaux\",100%,IF(C$6=\"ER 50%*coûts complets\",50%,IF(SUMIFS($E$19:$E$36,$A$19:$A$36,$L$3,$B$19:$B$36,C$6,$C$19:$C$36,C$8)=0,\"Erreur de paramétrage\",SUMIFS($E$19:$E$36,$A$19:$A$36,$L$3,$B$19:$B$36,C$6,$C$19:$C$36,C$8))))","v":"Erreur de paramétrage"},"Erreur de paramétrage","Erreur de paramétrage","Erreur de paramétrage"]
["Taux d'aide DE",{"$f":"IF(B$6=\"ER 100%*coûts marginaux\",100%,IF(B$6=\"ER 50%*coûts complets\",50%,IF(SUMIFS($F$19:$F$36,$A$19:$A$36,$L$3,$B$19:$B$36,B$6,$C$19:$C$36,B$8)=0,\"Erreur de paramétrage\",SUMIFS($F$19:$F$36,$A$19:$A$36,$L$3,$B$19:$B$36,B$6,$C$19:$C$36,B$8))))","v":"Erreur de paramétrage"},{"$f":"IF(C$6=\"ER 100%*coûts marginaux\",100%,IF(C$6=\"ER 50%*coûts complets\",50%,IF(SUMIFS($F$19:$F$36,$A$19:$A$36,$L$3,$B$19:$B$36,C$6,$C$19:$C$36,C$8)=0,\"Erreur de paramétrage\",SUMIFS($F$19:$F$36,$A$19:$A$36,$L$3,$B$19:$B$36,C$6,$C$19:$C$36,C$8))))","v":"Erreur de paramétrage"},"Erreur de paramétrage","Erreur de paramétrage","Erreur de paramétrage"]
["Taux d'aide PE",{"$f":"IF(B$6=\"ER 100%*coûts marginaux\",100%,IF(B$6=\"ER 50%*coûts complets\",50%,IF(SUMIFS($G$19:$G$36,$A$19:$A$36,$L$3,$B$19:$B$36,B$6,$C$19:$C$36,B$8)=0,\"Erreur de paramétrage\",SUMIFS($G$19:$G$36,$A$19:$A$36,$L$3,$B$19:$B$36,B$6,$C$19:$C$36,B$8))))","v":"Erreur de paramétrage"},{"$f":"IF(C$6=\"ER 100%*coûts marginaux\",100%,IF(C$6=\"ER 50%*coûts complets\",50%,IF(SUMIFS($G$19:$G$36,$A$19:$A$36,$L$3,$B$19:$B$36,C$6,$C$19:$C$36,C$8)=0,\"Erreur de paramétrage\",SUMIFS($G$19:$G$36,$A$19:$A$36,$L$3,$B$19:$B$36,C$6,$C$19:$C$36,C$8))))","v":"Erreur de paramétrage"},"Erreur de paramétrage","Erreur de paramétrage","Erreur de paramétrage"]
["Coût de la solution de référence"]
["Coûts PE totaux",{"$f":"SUMIFS(BdD!$AJ$5:$AJ$22,BdD!$F$5:$F$22,B5,BdD!$AF$5:$AF$22,\"PE\")","v":0},{"$f":"SUMIFS(BdD!$AJ$5:$AJ$22,BdD!$F$5:$F$22,C5,BdD!$AF$5:$AF$22,\"PE\")","v":0},{"$f":"SUMIFS(BdD!$AJ$5:$AJ$22,BdD!$F$5:$F$22,D5,BdD!$AF$5:$AF$22,\"PE\")","v":0},{"$f":"SUMIFS(BdD!$AJ$5:$AJ$22,BdD!$F$5:$F$22,E5,BdD!$AF$5:$AF$22,\"PE\")","v":0},{"$f":"SUMIFS(BdD!$AJ$5:$AJ$22,BdD!$F$5:$F$22,F5,BdD!$AF$5:$AF$22,\"PE\")","v":0}]
["Taux PE sur coûts PE",{"$f":"IF(B13=\"\",\"\",SUMIFS(BdD!$AS$5:$AS$22,BdD!$F$5:$F$22,B5,BdD!$AF$5:$AF$22,\"PE\")/SUMIFS(BdD!$AJ$5:$AJ$22,BdD!$F$5:$F$22,B5,BdD!$AF$5:$AF$22,\"PE\"))","v":""},{"$f":"IF(C13=\"\",\"\",SUMIFS(BdD!$AS$5:$AS$22,BdD!$F$5:$F$22,C5,BdD!$AF$5:$AF$22,\"PE\")/SUMIFS(BdD!$AJ$5:$AJ$22,BdD!$F$5:$F$22,C5,BdD!$AF$5:$AF$22,\"PE\"))","v":""},{"$f":"IF(D13=\"\",\"\",SUMIFS(BdD!$AS$5:$AS$22,BdD!$F$5:$F$22,D5,BdD!$AF$5:$AF$22,\"PE\")/SUMIFS(BdD!$AJ$5:$AJ$22,BdD!$F$5:$F$22,D5,BdD!$AF$5:$AF$22,\"PE\"))","v":""},{"$f":"IF(E13=\"\",\"\",SUMIFS(BdD!$AS$5:$AS$22,BdD!$F$5:$F$22,E5,BdD!$AF$5:$AF$22,\"PE\")/SUMIFS(BdD!$AJ$5:$AJ$22,BdD!$F$5:$F$22,E5,BdD!$AF$5:$AF$22,\"PE\"))","v":""},{"$f":"IF(F13=\"\",\"\",SUMIFS(BdD!$AS$5:$AS$22,BdD!$F$5:$F$22,F5,BdD!$AF$5:$AF$22,\"PE\")/SUMIFS(BdD!$AJ$5:$AJ$22,BdD!$F$5:$F$22,F5,BdD!$AF$5:$AF$22,\"PE\"))","v":""}]
[]
["Rappel des taux de l'AAP"]
["Coopératif","Catégorie","Aide en AR","Part d'AR","Taux RI","Taux DE","Taux PE"]
["Oui","GE","100% subvention","Erreur de paramétrage","Erreur de paramétrage","Erreur de paramétrage","Erreur de paramétrage"]
["Oui","GE","Subvention et avances remboursables",null,0.65,0.4,0.4]
["Oui","GE","100% avances remboursables","Erreur de paramétrage","Erreur de paramétrage","Erreur de paramétrage","Erreur de paramétrage"]
["Oui","ME","100% subvention","Erreur de paramétrage","Erreur de paramétrage","Erreur de paramétrage","Erreur de paramétrage"]
["Oui","ME","Subvention et avances remboursables",null,0.75,0.5,0.5]
["Oui","ME","100% avances remboursables","Erreur de paramétrage","Erreur de paramétrage","Erreur de paramétrage","Erreur de paramétrage"]
["Oui","PE","100% subvention","Erreur de paramétrage","Erreur de paramétrage","Erreur de paramétrage","Erreur de paramétrage"]
["Oui","PE","Subvention et avances remboursables",null,0.8,0.6,0.6]
["Oui","PE","100% avances remboursables","Erreur de paramétrage","Erreur de paramétrage","Erreur de paramétrage","Erreur de paramétrage"]
["Non","GE","100% subvention","Erreur de paramétrage","Erreur de paramétrage","Erreur de paramétrage","Erreur de paramétrage"]
["Non","GE","Subvention et avances remboursables",null,0.5,0.25,0.4]
["Non","GE","100% avances remboursables","Erreur de paramétrage","Erreur de paramétrage","Erreur de paramétrage","Erreur de paramétrage"]
["Non","ME","100% subvention","Erreur de paramétrage","Erreur de paramétrage","Erreur de paramétrage","Erreur de paramétrage"]
["Non","ME","Subvention et avances remboursables",null,0.6,0.35,0.5]
["Non","ME","100% avances remboursables","Erreur de paramétrage","Erreur de paramétrage","Erreur de paramétrage","Erreur de paramétrage"]
["Non","PE","100% subvention","Erreur de paramétrage","Erreur de paramétrage","Erreur de paramétrage","Erreur de paramétrage"]
["Non","PE","Subvention et avances remboursables",null,0.7,0.45,0.6]
["Non","PE","100% avances remboursables","Erreur de paramétrage","Erreur de paramétrage","Erreur de paramétrage","Erreur de paramétrage"]

{"sheet":"Structure projet ","index":3,"n_rows":100,"n_cols":6,"rows_kept":100,"cut":false,"hidden":false,"merged":[]}
[]
[null,"Lot","Tache","Sous-tache","Code","Intitulé de l'activité"]
[null,"LOT 0",1,1,{"$f":"CONCATENATE(B3,C3,D3)","v":"LOT 011"},"test"]
[null,null,null,null,{"$f":"CONCATENATE(B4,C4,D4)","v":""}]
[null,null,null,null,""]
[null,null,null,null,""]
[null,null,null,null,""]
[null,null,null,null,""]
[null,null,null,null,""]
[null,null,null,null,""]
[null,null,null,null,""]
[null,null,null,null,""]
[null,null,null,null,""]
[null,null,null,null,""]
[null,null,null,null,""]
[null,null,null,null,""]
[null,null,null,null,""]
[null,null,null,null,""]
[null,null,null,null,""]
[null,null,null,null,""]
[null,null,null,null,""]
[null,null,null,null,""]
[null,null,null,null,""]
[null,null,null,null,""]
[null,null,null,null,""]
[null,null,null,null,""]
[null,null,null,null,""]
[null,null,null,null,""]
[null,null,null,null,""]
[null,null,null,null,""]
[null,null,null,null,""]
[null,null,null,null,""]
[null,null,null,null,""]
[null,null,null,null,""]
[null,null,null,null,""]
[null,null,null,null,""]
[null,null,null,null,""]
[null,null,null,null,""]
[null,null,null,null,""]
[null,null,null,null,""]
[null,null,null,null,""]
[null,null,null,null,""]
[null,null,null,null,""]
[null,null,null,null,""]
[null,null,null,null,""]
[null,null,null,null,""]
[null,null,null,null,""]
[null,null,null,null,""]
[null,null,null,null,""]
[null,null,null,null,""]
[null,null,null,null,""]
[null,null,null,null,""]
[null,null,null,null,""]
[null,null,null,null,""]
[null,null,null,null,""]
[null,null,null,null,""]
[null,null,null,null,""]
[null,null,null,null,""]
[null,null,null,null,""]
[null,null,null,null,""]
[null,null,null,null,""]
[null,null,null,null,""]
[null,null,null,null,""]
[null,null,null,null,""]
[null,null,null,null,""]
[null,null,null,null,""]
[null,null,null,null,""]
[null,null,null,null,{"$f":"CONCATENATE(B68,C68,D68)","v":""}]
[null,null,null,null,""]
[null,null,null,null,""]
[null,null,null,null,""]
[null,null,null,null,""]
[null,null,null,null,""]
[null,null,null,null,""]
[null,null,null,null,""]
[null,null,null,null,""]
[null,null,null,null,""]
[null,null,null,null,""]
[null,null,null,null,""]
[null,null,null,null,""]
[null,null,null,null,""]
[null,null,null,null,""]
[null,null,null,null,""]
[null,null,null,null,""]
[null,null,null,null,""]
[null,null,null,null,""]
[null,null,null,null,""]
[null,null,null,null,""]
[null,null,null,null,""]
[null,null,null,null,""]
[null,null,null,null,""]
[null,null,null,null,""]
[null,null,null,null,""]
[null,null,null,null,""]
[null,null,null,null,""]
[null,null,null,null,""]
[null,null,null,null,""]
[null,null,null,null,""]
[null,null,null,null,""]
[null,null,null,null,""]

{"sheet":"BdD","index":4,"n_rows":21,"n_cols":45,"rows_kept":21,"cut":false,"hidden":false,"merged":[[1,6,1,8],[2,6,2,8],[0,0,0,6],[20,20,20,44],[20,0,20,1]]}
["Base de données des coûts du projet",null,null,null,null,null,null,null,null,"Homme.mois cat 1","Homme.mois cat 2","Homme.mois cat 3","Homme.mois cat 4","Homme.mois cat 5","Total Homme.mois",null,null,null,null,null,"Salaires chargés non environnés","dont salaires personnels permanents","dont salaires sans pers. permanents","Frais connexes","Coûts de sous-traitance","Contribution aux amortissements","Coût de refacturation interne","Frais de Mission","Autres coûts","Commentaires","Total des coûts",null,null,"Total coûts RI","Total coûts DE","Total coûts PE","Coûts PE admissibles","Total coûts éligibles et retenus","Total coûts non éligibles","Total coûts non retenus","Total coûts PE non admissibles","Total coûts non éligibles et non retenus","Subventions","Avances remboursables","Aide totale"]
[null,null,null,null,null,null,"TOTAL =>",null,null,{"$f":"SUM(J5:J22)","v":0},0,0,0,0,0,null,null,null,null,null,{"$f":"SUM(U5:U22)","v":0},{"$f":"SUM(V5:V22)","v":0},{"$f":"SUM(W4:W20)","v":0},0,0,0,0,0,0,null,{"$f":"SUM(AE4:AE20)","v":0},null,null,{"$f":"SUM(AH5:AH22)","v":0},0,0,0,0,0,0,0,0,0,0,0]
[null,null,null,null,{"$f":"IF(Partenaires!F3=\"\",\"\",Partenaires!F3)","v":""},null,"SOUS-TOTAL =>",null,null,{"$f":"SUBTOTAL(9,J5:J22)","v":0},0,0,0,0,0,null,null,null,null,null,{"$f":"SUBTOTAL(9,U5:U22)","v":0},{"$f":"SUBTOTAL(9,V5:V22)","v":0},{"$f":"SUBTOTAL(9,W4:W20)","v":0},0,0,0,0,0,0,null,{"$f":"SUBTOTAL(9,AE4:AE20)","v":0},null,null,{"$f":"SUBTOTAL(9,AH5:AH21)","v":0},{"$f":"SUBTOTAL(9,AI5:AI21)","v":0},{"$f":"SUBTOTAL(9,AJ5:AJ21)","v":0},{"$f":"SUBTOTAL(9,AK5:AK21)","v":0},{"$f":"SUBTOTAL(9,AL5:AL21)","v":0},{"$f":"SUBTOTAL(9,AM5:AM22)","v":0},0,0,0,0,0,0]
[null,null,null,null,null,null,null,null,null,null,"PASSER LA SOURIS SUR LES CELLULES BLEUES POUR VISUALISER LES COMMENTAIRES",null,null,null,null,null,null,null,"PASSER LA SOURIS SUR LES CELLULES BLEUES POUR VISUALISER LES COMMENTAIRES",null,null,null,null,null,null,null,null,null,"PASSER LA SOURIS SUR LES CELLULES BLEUES POUR VISUALISER LES COMMENTAIRES"]
["Lot","Tache","Sous-tache","Code","Intitulé de l'activité","Partenaire","Semestre","Livrable","Etape-clef","Homme.mois cat 1","Homme.mois cat 2","Homme.mois cat 3","Homme.mois cat 4","Homme.mois cat 5","Total Homme.mois","Salaires cat 1","Salaires cat 2","Salaires cat 3","Salaires cat 4","Salaires cat 5","Salaires chargés non environnés","dont salaires personnels permanents (statutaires organismes publics)","dont salaires sans pers. permanents","Frais connexes (forfaitaires)","Coûts de sous-traitance","Contributions aux amortissements","Coûts de refacturation interne","Frais de mission","Autres coûts","Commentaires","Total des coûts","Classification","Taux aide","Total coûts RI","Total coûts DE","Total coûts PE","Total coûts PE admissibles","Total coûts éligibles et retenus","Total coûts non éligibles","Total coûts non retenus","Total coûts PE non admissibles","Total coûts non éligibles et non retenus","Subventions","Avances remboursables","Aide totale"]
[null,null,null,{"$f":"CONCATENATE(A6,B6,C6)","v":""},{"$f":"IFERROR(VLOOKUP(D6,'Structure projet '!E:F,2,FALSE),\"\")","v":0},null,null,null,null,null,null,null,null,null,{"$f":"SUM(J6:N6)","v":0},null,null,null,null,null,{"$f":"J6*P6+K6*Q6+L6*R6+M6*S6+N6*T6","v":0},null,{"$f":"IF(U6-V6=0,0,U6-V6)","v":0},{"$f":"IF(F6=\"\",0,IF(AF6=\"PE\",0,IF(OR(HLOOKUP(F6,Matrice_clefs,2,FALSE)=\"ER 50%*coûts complets\",HLOOKUP(F6,Matrice_clefs,2,FALSE)=\"GE\",HLOOKUP(F6,Matrice_clefs,2,FALSE)=\"ME\",HLOOKUP(F6,Matrice_clefs,2,FALSE)=\"PE\"),20%*U6,IF(HLOOKUP(F6,Matrice_clefs,2,FALSE)=\"ER 100%*coûts marginaux\",4%*Z6+8%*SUM(W6,Y6,AA6:AC6),0))))","v":0},null,null,null,null,null,null,{"$f":"U6+SUM(X6:AC6)","v":0},null,{"$f":"IF(F6=\"\",0,IF(AF6=\"RI\",N(HLOOKUP($F6,Matrice_clefs,6,FALSE)),IF(AF6=\"DE\",N(HLOOKUP($F6,Matrice_clefs,7,FALSE)),IF(AF6=\"PE\",N(HLOOKUP($F6,Matrice_clefs,8,FALSE)),0))))","v":0},{"$f":"IF(F6=\"\",0,IF(OR(AF6=\"DE\",AF6=\"NE\",AF6=\"NR\",AF6=\"PE\"),0,IF(HLOOKUP(F6,Matrice_clefs,2,FALSE)=\"ER 100%*coûts marginaux\",AE6-V6,IF(AF6=\"RI\",AE6,0))))","v":0},{"$f":"IF(OR(AF6=\"RI\",AF6=\"NE\",AF6=\"NR\",AF6=\"PE\"),0,IF(AF6=\"DE\",AE6-V6,0))","v":0},{"$f":"IF(AF6=\"PE\",AE6-V6,0)","v":0},{"$f":"IF(AF6=\"PE\",AJ6-(AJ6*N(HLOOKUP($F6,Matrice_clefs,9,FALSE))/N(HLOOKUP($F6,Matrice_clefs,10,FALSE))),0)","v":0},{"$f":"AH6+AI6+AK6","v":0},{"$f":"IF(AF6=\"NE\",AE6,V6)","v":0},{"$f":"IF(AF6=\"NR\",AE6,0)","v":0},{"$f":"IF(AF6=\"PE\",AJ6-AK6,0)","v":0},{"$f":"AM6+AN6+AO6","v":0},{"$f":"AS6-AR6","v":0},{"$f":"IF(F6=\"\",0,$AS6*N(HLOOKUP($F6,Matrice_clefs,5,FALSE)))","v":0},{"$f":"AL6*AG6","v":0}]
[null,null,null,{"$f":"CONCATENATE(A7,B7,C7)","v":""},{"$f":"IFERROR(VLOOKUP(D7,'Structure projet '!E:F,2,FALSE),\"\")","v":0},null,null,null,null,null,null,null,null,null,{"$f":"SUM(J7:N7)","v":0},null,null,null,null,null,{"$f":"J7*P7+K7*Q7+L7*R7+M7*S7+N7*T7","v":0},null,{"$f":"IF(U7-V7=0,0,U7-V7)","v":0},0,null,null,null,null,null,null,{"$f":"U7+SUM(X7:AC7)","v":0},null,{"$f":"IF(F7=\"\",0,IF(OR(AF7=\"RI\",AF7=\"DE\"),N(HLOOKUP($F7,Matrice_clefs,7,FALSE)),IF(AF7=\"PE\",N(HLOOKUP($F7,Matrice_clefs,8,FALSE)),0)))","v":0},{"$f":"IF(F7=\"\",0,IF(OR(AF7=\"DE\",AF7=\"NE\",AF7=\"NR\",AF7=\"PE\"),0,IF(HLOOKUP(F7,Matrice_clefs,2,FALSE)=\"ER 100%*coûts marginaux\",AE7-V7,IF(AF7=\"RI\",AE7,0))))","v":0},{"$f":"IF(OR(AF7=\"RI\",AF7=\"NE\",AF7=\"NR\",AF7=\"PE\"),0,IF(AF7=\"DE\",AE7-V7,0))","v":0},{"$f":"IF(AF7=\"PE\",AE7-V7,0)","v":0},0,{"$f":"AH7+AI7+AK7","v":0},{"$f":"IF(AF7=\"NE\",AE7,V7)","v":0},{"$f":"IF(AF7=\"NR\",AE7,0)","v":0},{"$f":"IF(AF7=\"PE\",AJ7-AK7,0)","v":0},{"$f":"AM7+AN7+AO7","v":0},{"$f":"AS7-AR7","v":0},0,{"$f":"AL7*AG7","v":0}]
[null,null,null,"",{"$f":"IFERROR(VLOOKUP(D8,'Structure projet '!E:F,2,FALSE),\"\")","v":0},null,null,null,null,null,null,null,null,null,0,null,null,null,null,null,0,null,0,0,null,null,null,null,null,null,0,null,0,0,0,0,0,0,0,0,0,0,0,0,0]
[null,null,null,"",{"$f":"IFERROR(VLOOKUP(D9,'Structure projet '!E:F,2,FALSE),\"\")","v":0},null,null,null,null,null,null,null,null,null,0,null,null,null,null,null,0,null,0,0,null,null,null,null,null,null,0,null,0,0,0,0,0,0,0,0,0,0,0,0,0]
[null,null,null,"",{"$f":"IFERROR(VLOOKUP(D10,'Structure projet '!E:F,2,FALSE),\"\")","v":0},null,null,null,null,null,null,null,null,null,0,null,null,null,null,null,0,null,0,0,null,null,null,null,null,null,0,null,0,0,0,0,0,0,0,0,0,0,0,0,0]
[null,null,null,"",{"$f":"IFERROR(VLOOKUP(D11,'Structure projet '!E:F,2,FALSE),\"\")","v":0},null,null,null,null,null,null,null,null,null,0,null,null,null,null,null,0,null,0,0,null,null,null,null,null,null,0,null,0,0,0,0,0,0,0,0,0,0,0,0,0]
[null,null,null,"",{"$f":"IFERROR(VLOOKUP(D12,'Structure projet '!E:F,2,FALSE),\"\")","v":0},null,null,null,null,null,null,null,null,null,0,null,null,null,null,null,0,null,0,0,null,null,null,null,null,null,0,null,0,0,0,0,0,0,0,0,0,0,0,0,0]
[null,null,null,"",{"$f":"IFERROR(VLOOKUP(D13,'Structure projet '!E:F,2,FALSE),\"\")","v":0},null,null,null,null,null,null,null,null,null,0,null,null,null,null,null,0,null,0,0,null,null,null,null,null,null,0,null,0,0,0,0,0,0,0,0,0,0,0,0,0]
[null,null,null,"",{"$f":"IFERROR(VLOOKUP(D14,'Structure projet '!E:F,2,FALSE),\"\")","v":0},null,null,null,null,null,null,null,null,null,0,null,null,null,null,null,0,null,0,0,null,null,null,null,null,null,0,null,0,0,0,0,0,0,0,0,0,0,0,0,0]
[null,null,null,"",{"$f":"IFERROR(VLOOKUP(D15,'Structure projet '!E:F,2,FALSE),\"\")","v":0},null,null,null,null,null,null,null,null,null,0,null,null,null,null,null,0,null,0,0,null,null,null,null,null,null,0,null,0,0,0,0,0,0,0,0,0,0,0,0,0]
[null,null,null,"",{"$f":"IFERROR(VLOOKUP(D16,'Structure projet '!E:F,2,FALSE),\"\")","v":0},null,null,null,null,null,null,null,null,null,0,null,null,null,null,null,0,null,0,0,null,null,null,null,null,null,0,null,0,0,0,0,0,0,0,0,0,0,0,0,0]
[null,null,null,"",{"$f":"IFERROR(VLOOKUP(D17,'Structure projet '!E:F,2,FALSE),\"\")","v":0},null,null,null,null,null,null,null,null,null,0,null,null,null,null,null,0,null,0,0,null,null,null,null,null,null,0,null,0,0,0,0,0,0,0,0,0,0,0,0,0]
[null,null,null,"",{"$f":"IFERROR(VLOOKUP(D18,'Structure projet '!E:F,2,FALSE),\"\")","v":0},null,null,null,null,null,null,null,null,null,0,null,null,null,null,null,0,null,0,0,null,null,null,null,null,null,0,null,0,0,0,0,0,0,0,0,0,0,0,0,0]
[null,null,null,"",{"$f":"IFERROR(VLOOKUP(D19,'Structure projet '!E:F,2,FALSE),\"\")","v":0},null,null,null,null,null,null,null,null,null,0,null,null,null,null,null,0,null,0,0,null,null,null,null,null,null,0,null,0,0,0,0,0,0,0,0,0,0,0,0,0]
[null,null,null,"",{"$f":"IFERROR(VLOOKUP(D20,'Structure projet '!E:F,2,FALSE),\"\")","v":0},null,null,null,null,null,null,null,null,null,0,null,null,null,null,null,0,null,0,0,null,null,null,null,null,null,0,null,0,0,0,0,0,0,0,0,0,0,0,0,0]
[null,null,"NE PAS COPIER/COLLER DE LIGNE EN-DESSOUS"]

{"sheet":"Amortissements","index":5,"n_rows":12,"n_cols":32,"rows_kept":12,"cut":false,"hidden":false,"merged":[[0,0,0,7],[2,0,2,7]]}
["Tableau d'amortissement d'équipements de R&D"]
[]
["(comptes éligibles du PGC : 6122, 6135 et 6811)",null,null,null,null,null,null,null,null,null,null,null,"PASSER LA SOURIS SUR LES CELLULES BLEUES POUR VISUALISER LES COMMENTAIRES"]
[null,null,null,null,null,null,null,null,null,"ONGLET A REMPLIR OBLIGATOIREMENT"]
["Lot","Tache","Sous-tâche","Code","Intitulé de l'activité","Partenaire","Désignation et description\nde l'équipement amorti","Valeur d'acquisition (€)","Semestre projet d'acquisition","Durée d'amortissement comptable (en semestre)","Amortissement semestriel (€)","Nombre de semestre d'utilisation dans le cadre du projet ","Part d'utilisation affectée au projet (%)","Contribution aux amortissements sur le semestre (€)","Commentaires"]
[null,null,null,{"$f":"CONCATENATE(A6,B6,C6)","v":""},{"$f":"IFERROR(VLOOKUP(CONCATENATE(A6,B6,C6),'Structure projet '!E:F,2,FALSE),\"\")","v":0},null,null,null,null,null,{"$f":"IF(F6=\"\",\"\",H6/J6)","v":""},null,null,{"$f":"IF(F6=\"\",\"\",K6*M6*L6)","v":""}]
[null,null,null,{"$f":"CONCATENATE(A7,B7,C7)","v":""},{"$f":"IFERROR(VLOOKUP(CONCATENATE(A7,B7,C7),'Structure projet '!E:F,2,FALSE),\"\")","v":0},null,null,null,null,null,{"$f":"IF(F7=\"\",\"\",H7/J7)","v":""},null,null,{"$f":"IF(F7=\"\",\"\",K7*M7*L7)","v":""}]
[null,null,null,{"$f":"CONCATENATE(A8,B8,C8)","v":""},{"$f":"IFERROR(VLOOKUP(CONCATENATE(A8,B8,C8),'Structure projet '!E:F,2,FALSE),\"\")","v":0},null,null,null,null,null,{"$f":"IF(F8=\"\",\"\",H8/J8)","v":""},null,null,{"$f":"IF(F8=\"\",\"\",K8*M8*L8)","v":""},null,null,null,null,null,null,null,null,null,null,null,null,null,null,null,null,null,"NR"]
[null,null,null,"",{"$f":"IFERROR(VLOOKUP(CONCATENATE(A9,B9,C9),'Structure projet '!E:F,2,FALSE),\"\")","v":0},null,null,null,null,null,"",null,null,"",null,null,null,null,null,null,null,null,null,null,null,null,null,null,null,null,null,"NR"]
[null,null,null,"",{"$f":"IFERROR(VLOOKUP(CONCATENATE(A10,B10,C10),'Structure projet '!E:F,2,FALSE),\"\")","v":0},null,null,null,null,null,"",null,null,""]
[null,null,null,"",{"$f":"IFERROR(VLOOKUP(CONCATENATE(A11,B11,C11),'Structure projet '!E:F,2,FALSE),\"\")","v":0},null,null,null,null,null,"",null,null,""]
[null,null,"NE PAS COPIER/COLLER DE LIGNE EN-DESSOUS"]

{"sheet":"Description des couts ","index":6,"n_rows":11,"n_cols":32,"rows_kept":11,"cut":false,"hidden":false,"merged":[[0,0,0,8],[1,0,1,8]]}
["Description des coûts"]
[null,null,null,null,null,null,null,null,null,null,null,"PASSER LA SOURIS SUR LES CELLULES BLEUES POUR VISUALISER LES COMMENTAIRES"]
[null,null,null,null,null,null,null,null,null,"ONGLET A REMPLIR OBLIGATOIREMENT"]
["Lot","Tache","Sous-tâche","Code","Intitulé de l'activité","Partenaire","Semestre d'utilisation","Nature des coûts","Fournisseur pressenti","Localisation","Bien acheté","Montant unitaire (€)","Commentaires"]
[null,null,null,{"$f":"CONCATENATE(A5,B5,C5)","v":""},{"$f":"IFERROR(VLOOKUP(CONCATENATE(A5,B5,C5),'Structure projet '!E:F,2,FALSE),\"\")","v":0},null,null,null,null,null,null,null,null,null,null,null,null,null,null,null,null,null,null,null,null,null,null,null,null,null,null,"NR"]
[null,null,null,{"$f":"CONCATENATE(A6,B6,C6)","v":""},{"$f":"IFERROR(VLOOKUP(CONCATENATE(A6,B6,C6),'Structure projet '!E:F,2,FALSE),\"\")","v":0},null,null,null,null,null,null,null,null,null,null,null,null,null,null,null,null,null,null,null,null,null,null,null,null,null,null,"NR"]
[null,null,null,"",{"$f":"IFERROR(VLOOKUP(CONCATENATE(A7,B7,C7),'Structure projet '!E:F,2,FALSE),\"\")","v":0}]
[null,null,null,"",{"$f":"IFERROR(VLOOKUP(CONCATENATE(A8,B8,C8),'Structure projet '!E:F,2,FALSE),\"\")","v":0}]
[null,null,null,"",{"$f":"IFERROR(VLOOKUP(CONCATENATE(A9,B9,C9),'Structure projet '!E:F,2,FALSE),\"\")","v":0}]
[null,null,null,"",{"$f":"IFERROR(VLOOKUP(CONCATENATE(A10,B10,C10),'Structure projet '!E:F,2,FALSE),\"\")","v":0}]
[null,null,"NE PAS COPIER/COLLER DE LIGNE EN-DESSOUS"]

{"sheet":"Synthese","index":7,"n_rows":102,"n_cols":21,"rows_kept":102,"cut":false,"hidden":false,"merged":[[0,3,0,7]]}
[null,null,null,"Synthèse des coûts du projet"]
[null,null,null,"Copier / coller ce tableau dans le dossier de candidature"]
[null,null,null,null,"Étiquettes de colonnes"]
[null,null,null,"Valeurs","(vide)","Total général"]
[null,null,null,"Salaires chargés environnés :",0,0]
[null,null,null,"dont salaires permanents :"]
[null,null,null,"Frais connexes (forfaitaires) :",0,0]
[null,null,null,"Coûts de sous-traitance :"]
[null,null,null,"Contributions aux amortissements :"]
[null,null,null,"Frais de mission :"]
[null,null,null,"Coûts de refacturation interne :"]
[null,null,null,"Autres coûts :"]
[null,null,null,"Total des coûts :",0,0]
[]
[null,null,null,"Total des coûts :","Étiquettes de colonnes"]
[null,null,null,"Étiquettes de lignes","(vide)","Total général"]
[null,null,null,"(vide)",0,0]
[null,null,null,"Total général",0,0]
[]
[]
[]
[]
[]
[]
[null,null,null,"Étiquettes de lignes","Total des coûts :",null,null,null,"Total des coûts :","Étiquettes de colonnes"]
[null,null,null,"(vide)",0,null,null,null,"Étiquettes de lignes","(vide)","Total général"]
[null,null,null,"Total général",0,null,null,null,"(vide)",0,0]
[null,null,null,null,null,null,null,null,"Total général",0,0]
[]
[]
[]
[]
[]
[]
[]
[]
[]
[]
[]
[]
[]
[]
[]
[]
[]
[]
[]
[]
[]
[]
[]
[]
[]
[]
[]
[]
[]
[]
[]
[null,null,null,"Partenaire","(vide)",null,null,null,null,null,null,null,"Partenaire","(vide)"]
[]
[null,null,null,"Étiquettes de lignes"," Total coûts éligibles et retenus"," Total coûts non éligibles et non retenus",null,null,null,null,null,null,"Total des coûts :","Étiquettes de colonnes"]
[null,null,null,"(vide)",0,0,null,null,null,null,null,null,"Étiquettes de lignes","(vide)","Total général"]
[null,null,null,"Total général",0,0,null,null,null,null,null,null,"(vide)",0,0]
[null,null,null,null,null,null,null,null,null,null,null,null,"Total général",0,0]
[]
[]
[]
[]
[]
[]
[]
[]
[]
[]
[]
[]
[]
[]
[]
[]
[]
[]
[]
[]
[]
[]
[]
[]
[]
[]
[]
[]
[]
[]
[]
[]
[null,null,null,"Somme de Total Homme.mois","Étiquettes de colonnes",null,null,null,null,null,null,null,"Partenaire","(vide)"]
[null,null,null,"Étiquettes de lignes","(vide)","Total général"]
[null,null,null,"(vide)",0,0,null,null,null,null,null,null,"Étiquettes de lignes","Salaires chargés environnés :","dont salaires permanents :","Frais connexes (forfaitaires) :","Coûts de sous-traitance :","Contributions aux amortissements :","Frais de mission :","Coûts de refacturation interne :","Autres coûts :"]
[null,null,null,"Total général",0,0,null,null,null,null,null,null,"(vide)",0,null,0]
[null,null,null,null,null,null,null,null,null,null,null,null,"Total général",0,null,0]

{"sheet":"Aide prévisionnelle","index":8,"n_rows":43,"n_cols":11,"rows_kept":43,"cut":false,"hidden":false,"merged":[[0,2,0,6]]}
[null,null,"Aide prévisionnelle au projet"]
[]
[null,null,"Étiquettes de lignes","Coûts totaux","Assiette retenue des coûts éligibles","Montant de subventions","Montant d'avance remboursable","Montant d'aide totale"]
[null,null,"(vide)",0,0,0,0,0]
[null,null,"Total général",0,0,0,0,0]
[]
[]
[]
[]
[]
[]
[]
[null,null,null,null," % subvention/aide totale"," % d'avance remboursable/aide total"," % aide totale/ coûts éligibles et retenus"," Effet levier"]
[null,null,null,null,{"$error":"#DIV/0!"},{"$error":"#DIV/0!"},{"$error":"#DIV/0!"},{"$error":"#DIV/0!"}]
[]
[null,null,null,"Étiquettes de colonnes"]
[null,null,"Valeurs","(vide)","Total"]
[null,null,"Total Homme.mois ",0,0]
[null,null,"Coûts totaux (€)",0,0]
[null,null,"Coûts éligibles et retenus (€)",0,0]
[null,null,"Coûts RI (€)",0,0]
[null,null,"Coûts DE (€)",0,0]
[null,null,"Coûts PE (€)",0,0]
[null,null,"Coûts PE admissibles (€)",0,0]
[null,null,"Subventions (€)",0,0]
[null,null,"Avances remboursables (€)",0,0]
[null,null,"Aide totale (€)",0,0]
[]
[]
[null,null,"Contrôle de cohérence"]
[null,null,"Part de subvention (%)",{"$f":"IFERROR(D25/D27,\"\")","v":""},{"$f":"IFERROR(E25/E27,\"\")","v":""},"","","","","",""]
[null,null,"Part d'avances remboursables (%)",{"$f":"IFERROR(D26/D27,\"\")","v":""},"","","","","","",{"$f":"IFERROR(K27/K26,\"\")","v":""}]
[null,null,"Taux d'aide globale (%)",{"$f":"IFERROR(D27/D19,\"\")","v":""},"","","","","","",""]
[null,null,"Taux d'aide RI",{"$f":"IFERROR(D25/(D$21+D$22)/D$31,\"\")","v":""},"","","","","","",{"$f":"IFERROR(K25/K21,\"\")","v":""}]
[null,null,"Taux d'aide DE",{"$f":"IFERROR(D26/(D$21+D$22)/D$32,\"\")","v":""},"","","","","",null,{"$f":"IFERROR(K26/K22,\"\")","v":""}]
[null,null,"Taux d'aide PE",{"$f":"IFERROR(D26/(D$24)/D$32,\"\")","v":""},"","","","",""]
[]
[]
[null,null,"Partenaire","(vide)"]
[]
[null,null,"Étiquettes de lignes","Avances remboursables  ","Subventions "]
[null,null,"(vide)",0,0]
[null,null,"Total",0,0]

{"sheet":"CheckList","index":9,"n_rows":127,"n_cols":13,"rows_kept":127,"cut":false,"hidden":false,"merged":[[122,1,122,2],[122,3,122,4],[122,6,122,7],[122,8,122,9],[43,2,43,4],[83,2,83,4],[96,2,96,4],[119,1,119,3],[108,1,108,3],[109,2,109,4],[110,2,110,4],[8,1,8,3],[1,1,1,3],[19,1,19,3],[25,1,25,3],[20,2,20,4],[9,2,9,4],[10,2,10,4],[26,2,26,4],[36,2,36,4],[42,1,42,3],[82,1,82,3],[95,1,95,3],[64,1,64,3],[35,1,35,3],[65,2,65,4]]}
[]
[null,"Contrôle Nb Homme.mois",null,null,null,null,"Paramètre"]
[null,null,"Part des ETP projet par rapport ETP entreprise :",null,null,{"$f":"IF(MAX(C7:H7)<G3,1,0)","v":1},0.3]
[null,null,"Étiquettes de colonnes"]
[null,null,"(vide)"]
[null,"Total Homme.mois ",0]
[null,"(ETPprojet)/ (ETPentreprise)",{"$f":"IFERROR(C6/(Partenaires!$I$3*HLOOKUP(C5,Partenaires!$B$5:$G$7,3,FALSE)),\"\")","v":""},{"$f":"IFERROR(D6/(Partenaires!$I$3*HLOOKUP(D5,Partenaires!$B$5:$G$7,3,FALSE)),\"\")","v":""},{"$f":"IFERROR(E6/(Partenaires!$I$3*HLOOKUP(E5,Partenaires!$B$5:$G$7,3,FALSE)),\"\")","v":""},{"$f":"IFERROR(F6/(Partenaires!$I$3*HLOOKUP(F5,Partenaires!$B$5:$G$7,3,FALSE)),\"\")","v":""},{"$f":"IFERROR(G6/(Partenaires!$I$3*HLOOKUP(G5,Partenaires!$B$5:$G$7,3,FALSE)),\"\")","v":""},{"$f":"IFERROR(H6/(12*Partenaires!$I$3*HLOOKUP(H5,Partenaires!$B$5:$G$7,3,FALSE)),\"\")","v":""},{"$f":"IFERROR(I6/(12*Partenaires!$I$3*HLOOKUP(I5,Partenaires!$B$5:$G$7,3,FALSE)),\"\")","v":""},{"$f":"IFERROR(J6/(12*Partenaires!$I$3*HLOOKUP(J5,Partenaires!$B$5:$G$7,3,FALSE)),\"\")","v":""},{"$f":"IFERROR(K6/(12*Partenaires!$I$3*HLOOKUP(K5,Partenaires!$B$5:$G$7,3,FALSE)),\"\")","v":""},{"$f":"IFERROR(L6/(12*Partenaires!$I$3*HLOOKUP(L5,Partenaires!$B$5:$G$7,3,FALSE)),\"\")","v":""}]
[]
[null,"Contrôle du caractère collaboratif"]
[null,null,"Part des coûts portés par les entreprises < 70%:",null,null,{"$f":"IF(MAX(C18:I18)<70%,1,0)","v":1},"art.25 RGEC 6.b.i tiret "]
[null,null,"Part des coûts portés par les organismes de recherche > 10% :",null,null,{"$f":"IF(SUM(C17:H17)>10%,1,0)","v":0}]
[]
[null,null,"Étiquettes de colonnes"]
[null,null,"(vide)","Total général",null,null,null,null,null,{"$f":"IFERROR(HLOOKUP(#REF!,Matrice_clefs,2,FALSE),\"\")","v":""},{"$f":"IFERROR(HLOOKUP(#REF!,Matrice_clefs,2,FALSE),\"\")","v":""},{"$f":"IFERROR(HLOOKUP(#REF!,Matrice_clefs,2,FALSE),\"\")","v":""},{"$f":"IFERROR(HLOOKUP(#REF!,Matrice_clefs,2,FALSE),\"\")","v":""}]
[null,"Total des coûts :",0,0]
[null,"Catégorie entreprise",{"$f":"IFERROR(HLOOKUP(C14,Matrice_clefs,2,FALSE),\"\")","v":""},"","","","","","","","","",""]
[null,"% coût supportés par LP",{"$f":"IF(OR(C16=\"ER 100%*coûts marginaux\",C16=\"ER 50%*coûts complets\"),C15/HLOOKUP(\"Total général\",$C$14:$M$15,2,FALSE),\"\")","v":""},"","","","","",{"$f":"IF(OR(I16=\"ER 100%*coûts marginaux\",I16=\"ER 50%*coûts complets\"),I15/HLOOKUP(\"Total général\",H14:R15,2,FALSE),\"\")","v":""},{"$f":"IF(OR(J16=\"ER 100%*coûts marginaux\",J16=\"ER 50%*coûts complets\"),J15/HLOOKUP(\"Total général\",I14:S15,2,FALSE),\"\")","v":""},{"$f":"IF(OR(K16=\"ER 100%*coûts marginaux\",K16=\"ER 50%*coûts complets\"),K15/HLOOKUP(\"Total général\",J14:T15,2,FALSE),\"\")","v":""},{"$f":"IF(OR(L16=\"ER 100%*coûts marginaux\",L16=\"ER 50%*coûts complets\"),L15/HLOOKUP(\"Total général\",K14:U15,2,FALSE),\"\")","v":""},{"$f":"IF(OR(M16=\"ER 100%*coûts marginaux\",M16=\"ER 50%*coûts complets\"),M15/HLOOKUP(\"Total général\",L14:V15,2,FALSE),\"\")","v":""}]
[null,"% coût supportés par LP",{"$f":"IF(OR(C16=\"Pe\",C16=\"ME\",C16=\"GE\"),C15/HLOOKUP(\"Total général\",$C$14:$M$15,2,FALSE),\"\")","v":""},{"$f":"IF(OR(D16=\"Pe\",D16=\"ME\",D16=\"GE\"),D15/HLOOKUP(\"Total général\",$C$14:$M$15,2,FALSE),\"\")","v":""},"","",{"$f":"IF(OR(G16=\"Pe\",G16=\"ME\",G16=\"GE\"),G15/HLOOKUP(\"Total général\",$C$14:$M$15,2,FALSE),\"\")","v":""},{"$f":"IF(OR(H16=\"Pe\",H16=\"ME\",H16=\"GE\"),H15/HLOOKUP(\"Total général\",H14:R15,2,FALSE),\"\")","v":""},"",{"$f":"IF(OR(J16=\"Pe\",J16=\"ME\",J16=\"GE\"),J15/HLOOKUP(\"Total général\",J14:T15,2,FALSE),\"\")","v":""},{"$f":"IF(OR(K16=\"Pe\",K16=\"ME\",K16=\"GE\"),K15/HLOOKUP(\"Total général\",K14:U15,2,FALSE),\"\")","v":""},{"$f":"IF(OR(L16=\"Pe\",L16=\"ME\",L16=\"GE\"),L15/HLOOKUP(\"Total général\",L14:V15,2,FALSE),\"\")","v":""},{"$f":"IF(OR(M16=\"Pe\",M16=\"ME\",M16=\"GE\"),M15/HLOOKUP(\"Total général\",M14:W15,2,FALSE),\"\")","v":""}]
[]
[null,"Contrôle des salaires",null,null,null,null,"Paramètre"]
[null,null,"Salaires par catégorie Inférieurs à 15 000 € :",null,null,{"$f":"IF(MAX(B24:M24)>G21,0,1)","v":1},15000]
[]
[null,"Max de Salaires cat 1","Max de Salaires cat 2","Max de Salaires cat 3","Max de Salaires cat 4","Max de Salaires cat 5"]
[]
[]
[null,"Contrôle cout gestion projet",null,null,null,null,"Paramètre"]
[null,null,"Inférieur à 7% sur le projet et 7% par partenaire :",null,null,{"$f":"IF(MAX(C34:N34)>G27,0,1)","v":1},7.0000000000000007E-2]
[]
[null,"Intitulé de l'activité","(vide)"]
[]
[null,null,"Étiquettes de colonnes"]
[null,null,"(vide)","Total général"]
[null,"Total des coûts "]
[null,null,{"$f":"IFERROR(C33/HLOOKUP(C32,$B$14:$M$15,2),\"\")","v":""},{"$f":"IFERROR(D33/HLOOKUP(D32,$B$14:$M$15,2),\"\")","v":""},"",{"$f":"IFERROR(F33/HLOOKUP(F32,$B$14:$M$15,2),\"\")","v":""},{"$f":"IFERROR(G33/HLOOKUP(G32,$B$14:$M$15,2),\"\")","v":""},"","","",{"$f":"IFERROR(K33/(K15),\"\")","v":""},{"$f":"IFERROR(L33/(L15),\"\")","v":""},{"$f":"IFERROR(M33/(M15),\"\")","v":""}]
[]
[null,"Contrôle sous-traitance",null,null,null,null,"Paramètre"]
[null,null,"Part de la sous-traitance par rapport au cout total :",null,null,{"$f":"IFERROR(IF(MAX(C41:G41)>G37,0,1),0)","v":0},0.3]
[]
[null,null,"Étiquettes de colonnes"]
[null,null,"(vide)","Total général"]
[null,"Somme de soustrait/couts tot",{"$error":"#DIV/0!"},{"$error":"#DIV/0!"}]
[]
[null,"Contrôle des frais mission",null,null,null,null,"Paramètre"]
[null,null,"Frais de missions inférieur à 800€/homme.mois :",null,null,{"$f":"IF(MAX(C48:M56)>G44,0,1)","v":1},800]
[]
[null,"Somme de Champ3","Étiquettes de colonnes"]
[null,"Étiquettes de lignes","(vide)","Total général"]
[null,"(vide)",0,0]
[null,"Total général",0,0]
[]
[]
[]
[]
[]
[]
[]
[]
[]
[]
[]
[]
[]
[]
[]
[null,"Contrôle des frais connexe "]
[null,null,"Contrôle des frais connexes 20% :",null,null,{"$f":"IF(ROUND(SUM(C81:J81),1)=ROUND(SUM(C73:J73)/2,1),1,0)","v":1}]
[]
[null,null,"Étiquettes de colonnes"]
[null,"Valeurs","(vide)","Total général"]
[null,"Salaires chargés environnés :",0,0]
[null,"dont salaires sans pers. permanents  ",0,0]
[null,"dont salaires permanents :"]
[null,"Frais connexes (forfaitaires) :",0,0]
[null,"Coûts de sous-traitance :"]
[null,"Contributions aux amortissements :"]
[null,"Frais de mission :"]
[null,"Coûts de refacturation interne :"]
[null,"Autres coûts :"]
[null,"PME + GE + ER 40% cout complet",{"$f":"IFERROR(IF(HLOOKUP(C69,Matrice_clefs,2,FALSE)=\"ER 100%*coûts marginaux\",\"0\",20%*C70),\"\")","v":""},{"$f":"IFERROR(IF(HLOOKUP(D69,Matrice_clefs,2,FALSE)=\"ER 100%*coûts marginaux\",\"0\",20%*D70),\"\")","v":""},"","","","","",""]
[null,"ER 100% CM",{"$f":"IFERROR(IF(HLOOKUP(C69,Matrice_clefs,2,FALSE)=\"ER 100%*coûts marginaux\",4%*C75+8%*(C71+C74+C76+C77+C78),\"0\"),\"\")","v":""},"",{"$f":"IFERROR(IF(HLOOKUP(E69,Matrice_clefs,2,FALSE)=\"ER 100%*coûts marginaux\",4%*E75+8%*(E71+E74+E76+E77+E78),\"0\"),\"\")","v":""},"","","","",""]
[null,null,{"$f":"IFERROR((C79+C80),\"\")","v":""},{"$f":"IFERROR((D79+D80),\"\")","v":""},"","","",{"$f":"IFERROR((H79+H80),\"\")","v":""},{"$f":"IFERROR((I79+I80),\"\")","v":""},{"$f":"IFERROR((J79+J80),\"\")","v":""}]
[]
[null,"Contrôle des coûts eligible et retenu"]
[null,null,"Coûts éligibles et retenus =  Total coûts RI+Total coûts DE+Coûts PE Admissibles :",null,null,{"$f":"IF(AVERAGE(G87:G95)<1,0,1)","v":1}]
[]
[null,"Étiquettes de lignes"," Total coûts RI"," Total coûts DE"," Total coûts PE"," Total coûts éligibles et retenus"]
[null,"(vide)",0,0,0,0,{"$f":"IF(ROUND(C87+E87+D87,2)=ROUND(F87,2),1,0)","v":1}]
[null,"Total général",0,0,0,0,{"$f":"IF(ROUND(C88+E88+D88,2)=ROUND(F88,2),1,0)","v":1}]
[null,null,null,null,null,null,1]
[null,null,null,null,null,null,{"$f":"IF(ROUND(C90+E90+D90,2)=ROUND(F90,2),1,0)","v":1}]
[null,null,null,null,null,null,1]
[null,null,null,null,null,null,1]
[]
[]
[]
[null,"Controle des coûts non éligibles et non retenus"]
[null,null,"Coûts non éligibles et non retenus = Total coûts NE+Total coûts NR+Coûts PE non Admissibles :",null,null,{"$f":"IF(AVERAGE(G100:G107)<1,0,1)","v":1}]
[]
[null,"Étiquettes de lignes","Total coûts non éligibles "," Total coûts non retenus"," Total coûts PE non admissibles"," Total coûts non éligibles et non retenus"]
[null,"(vide)",0,0,0,0,{"$f":"IF(ROUND(C100+E100+D100,2)=ROUND(F100,2),1,0)","v":1}]
[null,"Total général",0,0,0,0,{"$f":"IF(ROUND(C101+E101+D101,2)=ROUND(F101,2),1,0)","v":1}]
[null,null,null,null,null,null,1]
[null,null,null,null,null,null,{"$f":"IF(ROUND(C103+E103+D103,2)=ROUND(F103,2),1,0)","v":1}]
[null,null,null,null,null,null,{"$f":"IF(ROUND(C104+E104+D104,2)=ROUND(F104,2),1,0)","v":1}]
[null,null,null,null,null,null,1]
[]
[]
[]
[null,"Controle % Sub et % AR"]
[null,null,"Contrôle du % subvention par partenaire :",null,null,{"$f":"IFERROR(IF(AVERAGE(C116:K116)<1,0,1),0)","v":0}]
[null,null,"Contrôle du % AR par partenaire :",null,null,{"$f":"IFERROR(IF(AVERAGE(C117:K117)<1,0,1),0)","v":0}]
[null,null,"Étiquettes de colonnes"]
[null,"Valeurs","(vide)","Total général"]
[null," % de subvention",{"$error":"#DIV/0!"},{"$error":"#DIV/0!"}]
[null," % d'AR",{"$error":"#DIV/0!"},{"$error":"#DIV/0!"},null,null,null,null,null,{"$f":"IFERROR((HLOOKUP(J113,Matrice_clefs,7,FALSE)*(1-HLOOKUP(J113,Matrice_clefs,5,FALSE)))=J114,\"\")","v":""},{"$f":"IFERROR((HLOOKUP(K113,Matrice_clefs,7,FALSE)*(1-HLOOKUP(K113,Matrice_clefs,5,FALSE)))=K114,\"\")","v":""}]
[null,null,{"$f":"IFERROR(IF((HLOOKUP(C113,Matrice_clefs,7,FALSE)*(1-HLOOKUP(C113,Matrice_clefs,5,FALSE)))=C114,1,\"\"),\"\")","v":""},"","","","",""]
[null,null,{"$f":"IFERROR(IF((HLOOKUP(C113,Matrice_clefs,7,FALSE)*(HLOOKUP(C113,Matrice_clefs,5,FALSE)))=C115,1,\"\"),\"\")","v":""},"","","","","","","",""]
[]
[]
[null,"Contrôle amortissement et des coûts"]
[]
[]
[null,"BDD",null,"Onglet Amortissements",null,null,"BDD",null,"Onglet Descirption des coûts"]
[null,"Étiquettes de lignes","Contributions aux amortissements :","Étiquettes de lignes","Contribution aux amortissements sur le semestre (€) ",null,"Étiquettes de lignes","coûts hors amortissements","Étiquettes de lignes","Montant unitaire (€) "]
[null,null,null,null,0,null,null,0]
[null,"(vide)",null,"(vide)",null,null,"(vide)",0,"(vide)"]
[null,"Total général",null,"Total général",0,null,"Total général",0,"Total général"]

{"sheet":"Synthèse par LOT","index":10,"n_rows":14,"n_cols":12,"rows_kept":14,"cut":false,"hidden":false,"merged":[]}
["Partenaire","(vide)"]
[]
[null,null,"Étiquettes de colonnes"]
[null,null,"   ",null,"Total éligibles et retenus en €","Groupe2",null,"Total éligibles et retenus en €","Total des dépenses pour l'opération en €"]
["Étiquettes de lignes","Valeurs","Total RI","Total DE",null,"Total NE","Total NR",null,null,null,"Contrôles :"]
["Total Salaires chargés non environnés :",null,null,null,null,null,null,null,0,null,"Salaires chargés non environnés :",{"$f":"IF(SUMIF(B6:B200,\"Salaires chargés non environnés :\",F6:F200)=SUMIF(A6:A200,\"Total Salaires chargés non environnés :\",F6:F200),1,0)","v":1}]
["Total Dont salaires chargés non environnés personnels permanents :",null,null,null,null,null,null,null,0,null,"Dont salaires chargés non environnés personnels permanents :",{"$f":"IF(SUMIF(B6:B200,\"Dont salaires chargés non environnés personnels permanents :\",F6:F200)=SUMIF(A6:A200,\"Total Dont salaires chargés non environnés personnels permanents :\",F6:F200),1,0)","v":1}]
["Total Frais connexes (forfaitaires) :",null,null,null,null,null,null,null,0,null,"Frais connexes (forfaitaires) :",{"$f":"IFERROR(IF(IF(OR(HLOOKUP(B1,Matrice_clefs,2,FALSE)=\"ER 50%*coûts complets\",HLOOKUP(B1,Matrice_clefs,2,FALSE)=\"GE\",HLOOKUP(B1,Matrice_clefs,2,FALSE)=\"ME\",HLOOKUP(B1,Matrice_clefs,2,FALSE)=\"PE\"),0.2*SUMIF(A3:A200,\"Total Salaires chargés non environnés :\",E3:E200),4%*SUMIF(A3:A200,\"Total Contribution aux amortissements :\",E3:E200)+8%*(SUMIF(A3:A200,\"Total Coûts de sous-traitance :\",E3:E200)+SUMIF(A3:A200,\"Total Coûts de refacturation interne :\",E3:E200)+SUMIF(A3:A200,\"Total Frais de mission :\",E3:E200)+SUMIF(A3:A200,\"Total Salaires chargés non environnés :\",E3:E200)-SUMIF(A3:A200,\"Total Dont salaires chargés non environnés personnels permanents :\",E3:E200)))=SUMIF(A3:A200,\"Total Frais connexes (forfaitaires) :\",E3:E200),1,0),0)","v":0}]
["Total Coûts de sous-traitance :",null,null,null,null,null,null,null,0,null,"Coûts de sous-traitance :",{"$f":"IF(SUMIF(B6:B200,\"Coûts de sous-traitance :\",F6:F200)=SUMIF(A6:A200,\"Total Coûts de sous-traitance :\",F6:F200),1,0)","v":1}]
["Total Contributions aux amortissements :",null,null,null,null,null,null,null,0,null,"Contributions aux amortissements :",{"$f":"IF(SUMIF(B6:B200,\"Contributions aux amortissements :\",F6:F200)=SUMIF(A6:A200,\"Total Contributions aux amortissements :\",F6:F200),1,0)","v":1}]
["Total Coûts de refacturation interne :",null,null,null,null,null,null,null,0,null,"Coûts de refacturation interne :",{"$f":"IF(SUMIF(B6:B200,\"Coûts de refacturation interne :\",F6:F200)=SUMIF(A6:A200,\"Total Coûts de refacturation interne :\",F6:F200),1,0)","v":1}]
["Total Frais de mission :",null,null,null,null,null,null,null,0,null,"Frais de mission :",{"$f":"IF(SUMIF(B6:B200,\"Frais de mission :\",F6:F200)=SUMIF(A6:A200,\"Total Frais de mission :\",F6:F200),1,0)","v":1}]
["Total Autres coûts :",null,null,null,null,null,null,null,0]
["Total Coûts totaux :",null,null,null,null,null,null,null,0]